{"text_format":"1","workbook":"xlsx","n_sheets":6,"sheets":["Порядок заполнения","Форма отчета","Перечень программ","Перечень мероприятий ФЦП","Рабочий_лист_не_менять!!!","Наименования субъектов РФ"],"not_rendered":{"charts":0,"images":0,"macros":1,"external_links":1,"defined_names":38,"comments":0,"pivot_tables":0},"unopened":[],"bounds":{"document_bytes":16777216,"sheet_cells":100000,"rows_first":2000,"rows_last":500,"rows_between":2000,"halvings":0,"cell_chars":16384,"cell_head_chars":4096},"cells_cut":0,"cells_raw":0,"read":"whole","date_system":"1900"}

{"sheet":"Порядок заполнения","index":0,"n_rows":36,"n_cols":2,"rows_kept":36,"cut":false,"hidden":false,"merged":[]}
["Пароль защиты:1987"]
[]
[]
[]
[null,"Рекомендации о  порядке  предоставления в ФКУ \"Дирекция Программы ПБДД\" квартальной отчетности о ходе выполнения региональных и муниципальных программ (подпрограмм) и внепрограммных мероприятий по повышению безопасности дорожного движения и правила ее заполнения"]
[null,"1.     Предоставление отчетности"]
[null,"1.1. Отчетные формы и информационная справка предоставляется за подписью лица, ответственного за реализацию Программы в субъекте Российской Федерации, а также исполнителя,  ответственного за подготовку отчета."]
[null,"1.2. Срок предоставления отчета о ходе выполнения региональных и муниципальных программ (подпрограмм) и внепрограммных мероприятий по повышению безопасности дорожного движения за 4 квартал 2013 года  - до 15 января 2014 г."]
[null,"1.3. Подписанный отчет  на бумажном носителе направляется  в адрес ФКУ \"Дирекция Программы ПБДД\": 127018, Москва, 3-й проезд Марьиной Рощи, д. 40, стр. 11.\n В случае крайней необходимости возможно использование факса  8-495-627-72-06\n"]
[null,"1.4. Перед отправлением печатных форм рекомендуется предварительно направить их электронные версии для согласования и выявления возможных ошибок на электронный адрес ФКУ \"Дирекция Программы ПБДД\"  fcp1320@yandex.ru \nФайл с отчетом в формате Excel должен иметь название в следующем виде: XX_наименование субъекта РФ_otchet_4_kv_2013, где XX - номер субъекта РФ в соответствии с Конституцией РФ.\nПеречень субъектов РФ с номерами в соответствии с Конституцией РФ приведен во вкладке \"Наименования субъектов РФ\"\nДирекция просит направлять отчет по электронной почте только в формате Excel."]
[null,"Примечание: Для облегчения заполнения электронной формы отчета и уменьшения вероятности ошибок итоговые ячейки рассчитываются автоматически; часть ячеек защищена от форматирования, редактирования и ввода данных неправильного типа, например, текста вместо чисел."]
[null,"2.     Заполнение формы отчета"]
[null,"2.1.  По умолчанию предоставлено 20 строк для ввода данных по мероприятиям федеральной целевой программы \"Повышение безопасности дорожного движения в 2013 - 2020 годах\", региональных и муниципальных программ (подпрограмм), направленных на сокращение числа лиц, погибших в результате дорожно-транспортных происшествий, и повышение уровня безопасности дорожного движения за счет средств регионального, местных бюджетов и внебюджетных источников.\nДля добавления строк необходимо нажать на кнопку \"Добавить строку для ввода данных по мероприятию\" в верхнем левом углу формы отчета.\nПри добавлении строки нумерация строк в графе 1 проставляется автоматически."]
[null,"2.2. В графе 2 \"Код пр.\" указывается присваиваемый условный порядковый номер региональной программы, муниципальных программ. Перечень программ указывается во вкладке \"Перечень программ\".\nЕсли в отчетном периоде осуществлялось мероприятие, направленное на сокращение числа лиц, погибших в результате дорожно-транспортных происшествий, и повышение уровня безопасности дорожного движения, однако оно отсутствует в региональной программе (муниципальных программах), данное мероприятие считается внепрограммным. При этом в графе 2 \"Код пр.\" указывается значение \"вп\"."]
[null,"2.3. В графе 3 указывается полное наименование мероприятия в соответствии с региональной программой (муниципальными программами).\nПри этом должны быть отражены все мероприятия, по которым в соотвествующих программах запланировано финансирование в отчетном году, включая мероприятия, которые на момент составления отчета не начали реализовываться."]
[null,"2.4. В графе 4 необходимо обязательно указать привязку мероприятия региональной программы (муниципальных программам) к мероприятиям федеральной целевой программы \"Повышение безопасности дорожного движения в 2013-2020 годах\". Для этого предлагается выбрать номер соответствующего мероприятия из списка. (Перечень полных наименований мероприятий ФЦП указан во вкладке \"Перечень мероприятий ФЦП\".\nЕсли мероприятие не соответствует ни одному мероприятию ФЦП, то необходимо выбрать значение \" - \"."]
[null,"2.5. В графе 5 необходимо указать источник финансирования мероприятия выбрав соответствующее обозначение из списка. Условные обозначения: РБ - региональный бюджет, МБ - местные бюджеты, ВБИ - внебюджетные источники.\nВнимание! В случае, если одно мероприятие имеет несколько источников финансирования, то по каждому источнику финансирования данные записываются отдельной строкой.\n\nВ графах 6-10, 13, 15, 16 данные показываются нарастающим итогом с начала года. В графах 14, 17 данные показываются за отчетный квартал.\nСледует вносить полную стоимость в тысячах рублей в соответствии с первичными документами. В форме значения автоматически округляются до 1 десятичного знака.\n"]
[null,"2.6. В графе 6 указываются плановые объемы финансирования по мероприятиям, запланированным в региональной программе (муниципальных программах) за счет средств соответствующего источника финансирования (региональный бюджет, местные бюджеты, внебюджетные источники)."]
[null,"2.7. В графе 7 указываются объемы финансирования, предусмотренные на реализацию мероприятий региональной программы (муниципальных программ) за счет средств соответствующего источника финансирования (региональный бюджет, местные бюджеты, внебюджетные источники)."]
[null,"2.8. В графе 8 указываются доведенные лимиты бюджетных обязательств (с учетом уточненной сводной бюджетной росписи) на реализацию мероприятий региональной программы (муниципальных программ) за счет средств соответствующего источника финансирования (региональный бюджет, местные бюджеты, внебюджетные источники).\nЗначения графы 8 не могут превышать значения графы 7."]
[null,"2.9. В графах 9 и 10 указывается стоимость контрактов (договоров) на поставку товаров, выполнение работ, оказание услуг.\nПри этом в графе 9 указывается сумма стоимости контрактов (договоров), заключенных в текущем году, а также полная стоимость многолетних контрактов (договоров), продолжающих действовать в текущем году."]
[null,"2.10. В графе 10 указывается сумма стоимости контрактов (договоров), заключенных в текущем году, а также той части стоимости многолетних контрактов (договоров), которая предусмотрена на текущий год.\nЗначения графы 10 не могут превышать значения графы 9."]
[null,"2.11. В графах 11 и 12 указывается количество контрактов (договоров) на поставку товаров, выполнение работ, оказание услуг в рамках мероприятий региональной программы (муниципальных программ) финансируемых за счет средств бюджета субъекта РФ, местных бюджетов, а также внебюджетных источников, соответственно (нарастающим итогом с начала года).\nПри этом в графе 11 указывается общее количество действующих в 2013 году контрактов (договоров), в том числе действующие в 2013 году контракты, договора прошлых лет."]
[null,"2.12. В графе 12 указывается количество контрактов (договоров) 2013 года.\nЗначения графы 12 не могут превышать значения графы 11.\n\nСтоимость и количество заключенных контрактов (договоров) необходимо указывать вне зависимости от наличия оплаты по ним.\n"]
[null,"2.13. В графах 13 и 14 указываются кассовые расходы отчетного года по заключенным контрактам (договорам) на выполнение мероприятий региональной программы (муниципальных программ) за счет средств бюджета субъекта РФ, местных бюджетов, а также внебюджетных источников, соответственно.\nВ графе 13 указывается сумма кассовых расходов за 2013 год по контрактам (договорам) 2013 года и контрактам (договорам) прошлых лет, действующим в 2013 году."]
[null,"2.14. В графе 14 указывается сумма кассовых расходы по контрактам (договорам) отчетного квартала 2013 года."]
[null,"2.15. В графе 15 указывается сумма по кредиторской задолжности (при наличии)."]
[null,"2.16. В графах 16 и 17 указывается стоимость фактически оплаченных работ (этапов работ) отчетного года, выполненных в полном объеме и закрытых актами сдачи-приемки, в том числе за отчетный квартал.\nВ графе 16 указывается стоимость оплаченных работ и этапов работ, выполненных в полном объеме и закрытых актами сдачи-приемки с начала года."]
[null,"2.17. В графе 17 указывается стоимость оплаченных работ и этапов, выполненных в полном объеме и закрытых актами сдачи-приемки за отчетный квартал."]
[null,"2.18. В графах 18, 19 и 20 отражаются фактические результаты реализации мероприятия.\nВ графе 18 указывается количественный результат реализации мероприятия."]
[null,"2.19. В графе 19 указывется единица измерения количественного показателя (например, шт., ед., м, км, п.м. и т.п.)."]
[null,"2.20. В графе 20 необходимо кратко описать результат реализации мероприятия, например: закуплено оборудование (наименование, кол-во), установлены знаки (кол-во), установлены дорожные ограждения (длина в пог.м),  проведена акция (наименование, кол-во) и т.д. В случае наличия промежуточного результата, необходимо указать этот результат, например: разработано техническое задание, проведен конкурс, оплачен аванс по государственному контракту, договору."]
[]
[]
[null,"По вопросам заполнения отчета обращайтесь в ФКУ \"Дирекция Программы ПБДД\""]
[null,"тел. (495) 627-72-16 доб. 185, 124, 105"]

{"sheet":"Форма отчета","index":1,"n_rows":152,"n_cols":20,"rows_kept":152,"cut":false,"hidden":false,"merged":[[10,19,14,19],[5,10,7,11],[5,15,7,16],[5,17,7,19],[5,12,7,14],[5,8,7,9],[5,4,8,4],[5,3,8,3],[5,6,8,6],[0,2,0,19],[2,8,2,16],[4,16,4,19],[1,3,1,19],[5,0,8,0],[5,2,8,2],[5,1,8,1],[5,5,8,5],[5,7,8,7],[36,10,36,13],[38,10,38,13],[40,10,40,13],[42,10,42,13],[38,0,38,8],[36,0,36,8]]}
[null,null,"Отчет"]
[null,null,null,"о ходе выполнения региональных и муниципальных программ (подпрограмм) и внепрограммных мероприятий по повышению безопасности дорожного движения"]
[null,null,null,null,null,null,null,null,"Астраханская область"]
[null,null,null,null,null,null,null,null,null,null,null,null,null,"(наименование субъекта РФ)"]
[null,null,null,null,null,null,null,null,null,null,null,null,null,null,null,"за    12","месяцев  2013 года                                     (в тыс. рублей)"]
["№ п.п.","Код пр.","Наименование мероприятия","Код мероприятия по ФЦП","Источник финансирования (РБ, МБ, ВБИ)","Запланиро-вано в рамках программы на 2013 г.","Бюджетные назначения на 2013 г.","Лимиты бюджетных обязательств на 2013 г.","Стоимость работ, предусмотренных на 2013 по действующим контрактам",null,"Количество контрактов, договоров, действующих в 2013 г.",null,"Фактически профинансировано (кассовые расходы) на реализацию программы (подпрограммы)",null,null,"Фактически освоено средств (по актам сдачи-приемки) на реализацию программы (подпрограммы)",null,"Фактическое выполнение мероприятия программы (подпрограммы)\n"]
[]
[]
[null,null,null,null,null,null,null,null,"Всего, включая действующие контракты прошлых лет","Контракты, заключенные за 12 месяцев 2013 года","Всего, включая конт-ракты прош-лых лет","Конт-ракты за 2013 год","С начала года","В том числе за отчетный квартал","по креди-торской задолж-ности","С начала года","В том числе за отчетный квартал","Количест-венный показатель","Ед. измере-ния","Краткое описание результатов выполнения мероприятия программы (подпрограммы)"]
["1","2","3","4","5","6","7","8","9","10","11","12","13","14","15","16","17","18","19","20"]
[" - ",null,"Итого по всем мероприятиям",null,null,{"$f":"SUM(F13:F15)","v":98605.78155},242418.71355000001,242418.71355000001,242394.32355,242394.31355000002,148,146,242394.32355,80693.481549999997,200,242394.32355,80893.481549999997,null,null," - "]
[" - ",null,"в том числе:"]
[" - ",null,"за счет средств регионального бюджета",null,{"$f":"A150","v":"РБ"},{"$f":"SUMIF($E$16:$E$35,$E13,F$16:F$35)","v":86513},225218.342,225218.342,225193.94200000001,225193.94200000001,133,131,225193.94200000001,63493.1,200,225193.94200000001,63693.1]
[" - ",null,"за счет средств местных бюджетов",null,{"$f":"A151","v":"МБ"},12092.78155,17200.37155,17200.37155,17200.381549999998,17200.37155,15,15,17200.381549999998,17200.381549999998,0,17200.381549999998,17200.381549999998]
[" - ",null,"за счет внебюджетных источников",null,{"$f":"A152","v":"ВБИ"},0,0,0,0,0,0,0,0,0,0,0,0]
[1,"1","1.1. Приобретение мобильных комплексов фиксации нарушений"," - ","РБ",300,300,300,280,280,1,1,280,0,0,280,0,2,"ед. ","Заключен контракт с ООО «Симикон» и приобретены 2 комплекса видеофиксации «Бинар» "]
[{"$f":"A16+1","v":2},"1","1.2. Приобретение автомобилей, оборудованных средствами конртоля нарушений Правил дорожного движения"," - ","РБ",2100,2100,2100,2100,2100,1,1,2100,0,0,2100,0,3,"ед. ","Заключен контракт с ООО «Орбита плюс» на поставку 3 единиц специального автотранспорта на базе «ВАЗ-2170», оборудованного средствами контроля и выявления правонарушений"]
[{"$f":"A17+1","v":3},"1","1.4. Приобретение автотранспорта, оборудованного системой контроля нарушений правил остановки/стоянки трансопртных средств"," - ","РБ",600,600,600,600,600,1,1,600,0,0,600,0,1,"ед. ","Заключен контракт и приобретен автомобиль «Лада-Гранта», оборудованный АПК «Тайфун» "]
[4,"1","4.1. Проведение широкомасштабных профилактических акций по обеспечению безопасности дорожного движения, конкурса «Безопасное колесо». Размещение материалов в средствах массовой информации по вопросам безопасности дорожного движения.Создание видео- и телевизионной информационно-пропагандистской продукции, организация и размещение тематической наружной социальной рекламы ","3/9","РБ",500,500,500,495.6,495.6,5,5,495.6,207.1,0,495.6,207.1,1,"ед.","Проведено широкомасштабное профилактическое мероприятие - областной конкурс «Безопасное колесо» на сумму 160,0 тыс.руб. Заключен контракт с ООО «Типография «Нова» на оказание услуг по изготовлению пропагандистской продукции по безопасности дорожного движения в количестве 6600 шт. на сумму 128,5 тыс.руб. Заключен контракт с ООО «Типография «Нова» на оказание услуг по изготовлению пропагандистской продукции по безопасности дорожного движения на сумму 90,0 тыс.руб.\nЗаключен контракт с РА «Феникс» на оказание услуг по изготовлению размещение тематической наружной социальной рекламы по безопасности дорожного движения в количестве 10 шт. на сумму 80,0 тыс.руб.\nЗаключен контракт ООО «ППК» на оказание услуг по изготовлению сувенирной пропагандистской продукции по тематике безопасности дорожного движения на сумму 37,1 тыс.руб\n"]
[5,"1","7.4.Обустройство наиболее опасных участков улично-дорожной сети дорожными ограждениями","5/7","МБ","5107, 59",5107.59,5107.59,5107.6000000000004,5107.59,1,1,5107.6000000000004,5107.6000000000004,0,5107.6000000000004,5107.6000000000004,1500,"м","заключен контракт №99 от 07.10.2013 г. с ООО «Премиум» на выполнение работ по обустройству наиболее опасных участков улично-дорожной сети города Астрахани дорожными (пешеходными) ограждениями на сумму 5 107 582,54 руб. Мероприятия согласно данного контракта выполнены в полном объеме."]
[6,"1","7.6.Модернизация светофорных объектов (оснащение светодиодными светофорами, современными управляющими контроллерами, табло обратного отсчета времени, дополнительными звуковыми сопровождающими устройствами, программного обеспечения, техническое переоснащение центральных управляющих пунктов (ЦУП) с установкой аппаратуры связи с СО, выполнение необходимых проектных работ)","5/8","МБ",55.55,55.55,55.55,55.55,55.55,1,1,55.55,55.55,0,55.55,55.55,1,"шт.","Заключен муниципальный контракт с ООО «Институт системотехники» на выполнение работ по разработке проекта «Устройство светофорного объекта в г. Астрахани на пересечении ул. Латвийская/ул. Наб. Казачьего Ерика» на сумму на сумму 55 550, 00 руб. Мероприятия согласно данного контракта выполнены в полном объеме"]
[7,"1","7.3.Нанесение горизонтальной дорожной разметки «зебра» на пешеходных переходах","5/8","МБ",1172.14582,1172.14582,1172.14582,1172.14582,1172.14582,3,3,1172.14582,1172.14582,0,1172.14582,1172.14582,3943.6093999999998,"м2","Заключены муниципальные контракты с ООО ПКФ \"Евразия\" №39Э от 22.04.2013 г., №65Э от 08.07.2013 г., №74Э от 29.07.2013 г."]
[8,"1","7.5.Создание маршрутного ориентирования участников дорожного движения (установка и замена дорожных знаков на автомобильных дорогах) ","5/8","МБ",1627.8983900000001,1627.8983900000001,1627.8983900000001,1627.8983900000001,1627.8983900000001,6,6,1627.8983900000001,1627.8983900000001,0,1627.8983900000001,1627.8983900000001,1526,"шт.","заключены муниципальные контракты с ООО ПКФ \"Евразия\" №1Э от 02.01.2013 г., с ООО \"Соадор\" №25Э от 25.03.2013 г., №76Э от 05.08.2013 г., №42Э от 23.04.2013 г., с ООО \"Астраханьтранссигнал\" №57Э от 14.06.2013 г., №98 от 03.10.2013 г., "]
[9,"1","7.3.Нанесение горизонтальной дорожной разметки на автомобильных дорогах","5/8","МБ",1471.8722299999999,1471.8722299999999,1471.8722299999999,1471.8722299999999,1471.8722299999999,2,2,1471.8722299999999,1471.8722299999999,0,1471.8722299999999,1471.8722299999999,35137.800000000003,"м","Заключены муниципальные контракты с ООО «Соадор» №41Э от 23.04.2013 г. и ООО «Многоотраслевое предприятие КОМПЛЕКС 1» №95Э от 30.09.2013 г. "]
[10,"3","Содержание федеральных и муниципальных светофорных объектов на улично-дорожной сети города Астрахани","5/8","МБ",7765.3151099999995,7765.3151099999995,7765.3151099999995,7765.3151099999995,7765.3151099999995,2,2,7765.3151099999995,7765.3151099999995,0,7765.3151099999995,7765.3151099999995,null,null,"Заключены муниципальные контракты с ООО \"Соадор\" №11Э от 28 января 2013 года и с ООО ПКФ \"Евразия\" на содержание федеральных и муниципальных светофорных объектов на улично-дорожной сети города Астрахани"]
[11,"1","2.1. Оснащение оборудованием лечебно-профилактических учреждений, автомобилей класса \"С\" бригад скорой специализированной помощи, участвующих в оказании помощи лицам, пострадавшим в ДТП","6/12","РБ",300,300,300,300,300,4,4,300,300,0,300,300,11,"ед.","Гражданско - правовой договор от 07.11.2013 г. № 5-2/231 с ООО «Медицинская экспертная группа» 155 тыс. руб.; \nдоговор поставки от 07.11.2013 г. № 129 с ООО «Редиус168» 9, 8  тыс. руб.;\nдоговор купли-продажи от 27.11.2013 г. № 26/Д с ОАО «Уральский приборостроительный завод»  25,65 тыс. руб.;\nгражданско - правовой договор от 22.11.2013 г. № д076-07113/п с ООО «НПО «Сетал»»109, 55тыс. руб."]
[12,"1","5.5. Приобретение световозвращающих приспособлений для обучающих образовательных учреждений, учреждений дошкольного образования","3/10","РБ",100,100,100,100,100,1,1,100,0,100,100,100,3800,"шт.","Заключен договор № 74 от 04.07.2013 с ИП Цывкунов Е.Н. на поставку световозвращающих приспособлений для учащихся общеобразовательных учреждений и учреждений дошкольного образования (браслеты – 2000,0 шт; фликеры – 1800 шт.) в количестве 3800 штук на сумму 100 тыс.руб."]
[13,"1"," 5.4. Разработка учебно-методических метериалов, программ, учебных пособий по обучению безопасному поведению на улицах и дорогах для образовательных учреждений","2/8","РБ",100,100,100,100,100,1,1,100,0,100,100,100,1750,"шт.","Согласно соглашению от 16.08.2013 № 280 с Государственным автономным общеобразовательным учреждением Астраханской области Дополнительного профессионального учреждения \"Астраханский институт повышения квалификации и переподготовки\" разработан комплекс учебно-методических материалов и растиражирован, в том числе :Методические рекомендации:\n- «Работа социального педагога по профилактике детского дорожно-транспортного травматизм» - тираж -250 экз.;\n- «Организация работы по профилактике детского дорожно-транспортного травматизма в условиях школы» - тираж – 250 экз.;\n- «Профилактика детского дорожно-транспортного травматизма» - тираж – 250 экз.; \n- «Система мероприятий в учреждениях дошкольного образования детей по профилактике детского дорожно-транспортного травматизма» - тираж – 250 экз.;\nМетодические пособия:\n- «Внеклассная работа по профилактике детского дорожно-транспортного травматизма» - тираж – 250 экз.;\n- «Рекомендации родителям» - тираж – 250 экз.;\n- «Детский дорожно-транспортный травматизм и его профилактика» - тираж – 250 экз. \nУчебные программы: \n- «Организация профилактической работы по предупреждению детского дорожно-транспортного травматизма в Астраханской области»;\n- «Программа работы школы по профилактике детского дорожно-транспортного травматизма (для обучающихся 1-9 классов);\n«Программа работы методического центра по профилактике детского дорожно-транспортного травматизма».\n"]
[14,"1","1.3. Обеспечение развития ( с проектированием систем и приобретением оборудования), модернизации и функционирования автоматизированной системы фиксации административных правонарушений в области дорожного движения с техническим обслуживанием установленного оборудования и оплатой почтовых расходов.    Реконструкция, техническое перевооружение объектов системы автоматического контроля и выявления нарушений Правил дорожного движения","2\\5","РБ",53000,53000,53000,53000,53000,46,44,53000,43468,0,53000,43468,53,"шт.","В настоящее время на территории области установлено и функционирует следующее специальное оборудование, информацию с которого получает и обрабатывает ЦАФАПОДД УГИБДД УМВД: 1. Стационарные комплексы видеофиксации – 57 ед., из них: Робот – 2 ед.; АРЕНА – 52 ед.; Автоураган – 3 ед. 2. Передвижные комплексы видеофиксации – 23 ед., из них: АРЕНА – 22 ед.; Крис-П – 1 ед.; 3. Мобильные комплексы видеофиксации – 3 ед., из них: ПаркРайт – 2 ед.; Тайфун – 1 ед.. Финансовые средства направлены на приобретение, установку, обслуживание и функционирование оборудования автоматической фиксации правонарушений ПДД согласно заключенных договоров, указанных в пояснительной записке "]
[15,"1, 2","7.1.Установка дорожных знаков и сигнальных столбиков на подходах к железнодорожным переездам","-","РБ",200,200,200,200,200,22,22,200,37,0,200,37,253,"шт.","Установлено 253 шт. сигнальных столбиков на подходах к железнодорожным переездам на автомобильных дорогах общего пользования регионального значения. Договора указаны в информационной запискерегионального значения"]
[16,"1,2","7.2. Оборудование нерегулируемых пешеходных переходов освещением, искусственными дорожными неровностями, светофорами Т.7, системами светового оповещения, дорожными знаками с внутренним освещением и светодиодной индикацией, Г-образными опорами, дорожной разметкой, в том числе с применением штучных форм и цветных дорожных покрытий, световозвращателями и индикаторами, а также устройствами дополнительного освещения и другими элементами повышения безопасности дорожного движения. Оборудование искусственным освещением мест концентрации дорожно-транспортных происшествий на участках автомобильных дорог.","5/11","РБ",3000,617.14200000000005,617.14200000000005,617.14200000000005,617.14200000000005,22,22,617.14200000000005,0,0,617.14200000000005,0,431,"п.м.","Нанесена дорожная разметка «Зебра» на пешеходных переходах региональных дорог в объеме 431 п.м. Договора указаны в информационной записке"]
[17,"1,2","7.3.Нанесение горизонтальной дорожной разметки на автомобильных дорогах регионального значения","-","РБ",18023,77105.100000000006,77105.100000000006,77105.100000000006,77105.100000000006,4,4,77105.100000000006,0,0,77105.100000000006,0,1176.848,"км","Нанесена дорожная разметка на 1171 км на автомобильных дорогах регионального значения Астраханской области. Договора указаны в информационной записке"]
[18,"1,2","7.4.Обустройство наиболее опасных участков автомобильных дорог регионального значения  барьерными ограждениями ","5/6","РБ",7780,21332.2,21332.2,21332.2,21332.2,3,3,21332.2,0,0,21332.2,0,7.0650000000000004,"км","Установлены барьерные ограждения в объеме 7 км на автомобильной дороге регионального значения Астраханской области. Договора указаны в информационной записке"]
[19,"1,2","7.5.Создание маршрутного ориентирования участников дорожного движения ( установка и замена дорожных знаков на автомобильных дорогах регионального значения)","-","РБ",510,68963.899999999994,68963.899999999994,68963.899999999994,68963.899999999994,22,22,68963.899999999994,19481,0,68963.899999999994,19481,7257,"шт.","Установлено (заменено) 7257 штук дорожных знаков на автомобильных дорогах общего пользования регионального значения. Договора указаны в информационной записке"]
["Добавлять мероприятия выше этой строки"]
[]
["Заместитель председателя Правительства Астраханской области - министр промышленности, транспорта и природных ресурсов Астраханской области",null,null,null,null,null,null,null,null,null,"С.Н. Кржановский"]
[null,null,null,null,null,null,null,null,null,null,null,null,"(Ф.И.О.)"]
["Начальник отдела транпорта департамента транспорта и портов",null,null,null,null,null,null,null,null,null,"Л.Н. Мустаева"]
[null,null,null,null,null,null,null,null,null,null,null,null,"(должность)"]
[null,null,null,null,null,null,null,null,null,null,"LarisaNM63@mail.ru"]
[null,null,null,null,null,null,null,null,null,null,null,null,"(адрес электронной почты)"]
[null,null,null,null,null,null,null,null,null,null,"(8512)55-92-77"]
[null,null,null,null,null,null,null,null,null,null,null,null,"(номер контактного телефона)"]
[]
[]
[]
[]
[]
[]
[]
[]
[]
[]
[]
[]
[]
[]
[]
[]
[]
[]
[]
[null,null,null,null,null,null,null,null,null,"№ по Конституции","Наименование субъекта РФ","Код ОКАТО","Фед. Округ"]
[null,null,null,null,null,null,null,null,null,"Нет","-Выбрать субъект РФ из списка (переключатель справа)","Нет","Нет"]
[null,"Полный перечень мероприятий ФЦП",null,null,null,null,null,null,null,22,"Алтайский край",1,"СибФО"]
["КОД","НАИМЕНОВАНИЕ","ВИД РАСХОДОВ",null,null,null,null,null,null,31,"Амурская область",10,"ДВФО"]
["2/1","Выполнение комплексных научных исследований с применением методов математического анализа в области систематизации и оценки эффективности средств повышения и контроля безопасности дорожного движения, в том числе разработка типовых решений и макетов для практического внедрения  наиболее эффективных средств в практику профилактики дорожно-транспортных происшествий на федеральном, региональном и муниципальном уровнях","НИОКР",null,null,null,null,null,null,32,"Архангельская область",11,"СЗФО"]
["2/2","Проведение научных исследований, разработка условий и требований по нормативно-правовому обеспечению внедрения и развития сервисов интеллектуальных транспортных систем в сфере обеспечения безопасности дорожного движения, повышения качества функционирования региональных транспортных систем и работы автомобильного транспорта","НИОКР",null,null,null,null,null,null,33,"Астраханская область",12,"ЮФО"]
["2/3","Разработка научно-обоснованных предложений по совершенствованию системы подготовки и непрерывного повышения квалификации специалистов, ответственных за обеспечение безопасного функционирования автомобильного транспорта, и ее гармонизации с международной системой профессиональной подготовки. Разработка курсов дистанционного обучения и методики оценки освоения учебных материалов при дистанционной форме обучения","НИОКР",null,null,null,null,null,null,34,"Белгородская область",14,"ЦФО"]
["2/4","Разработка комплексного проекта совершенствования системы подготовки водителей транспортных средств различных категорий, включая водителей из числа лиц с ограниченными физическими возможностями, организационно-методических рекомендаций, программ, учебных и методических пособий, образовательных ресурсов (в том числе в электронном виде) по обучению вождению транспортных средств различных категорий","НИОКР",null,null,null,null,null,null,35,"Брянская область",15,"ЦФО"]
["2/5","Оснащение системами автоматического контроля и выявления нарушений правил дорожного движения улично-дорожной сети городов и населенных пунктов, дорог регионального и муниципального значения (не менее 3936 комплексов)","Капитальные вложения",null,null,null,null,null,null,36,"Владимирская область",17,"ЦФО"]
["2/6","Техническое перевооружение, строительство, реконструкция центров по подготовке (переподготовке), дополнительного профессионального образования, повышения квалификации специалистов в области обеспечения безопасности дорожного движения (не менее 10,2 тыс. кв.м.)","Капитальные вложения",null,null,null,null,null,null,37,"Волгоградская область",18,"ЮФО"]
["2/7","Создание 3 федеральных центров по подготовке и повышению квалификации специалистов, занимающихся обучением водителей транспортных средств, специалистов по приему квалификационных экзаменов на право управления транспортными средствами различных категорий и подкатегорий, водителей транспортных средств различных категорий, включая водителей  транспортных средств из числа людей с ограниченными физическими возможностями, подготовке и повышению квалификации специалистов по обучению управлению транспортными средствами лиц с ограниченными физическими возможностями на базе образовательных организаций высшего образования (до 3,0 тыс. кв.м. учебных помещений (зданий) и 30,0 тыс. кв.м. плоскостных сооружений (оборудованные площадки по обучению)","Капитальные вложения",null,null,null,null,null,null,38,"Вологодская область",19,"СЗФО"]
["2/8","Создание и тиражирование и передача конечным пользователям учебно-методических и наглядных пособий, учебных фильмов, игр, программ для участников дорожного движения разных возрастных категорий, в том числе с использованием мультимедийных средств, освещающих вопросы безопасности дорожного движения","Прочие нужды",null,null,null,null,null,null,39,"Воронежская область",20,"ЦФО"]
["2/9","Проведение информационно-пропагандистских кампаний, использующих наиболее действенные каналы коммуникации, с целью повышения грамотности, ответственности и уровня самосознания участников дорожного движения и профилактики факторов риска, влияющих на количество и тяжесть дорожно-транспортных происшествий","Прочие нужды",null,null,null,null,null,null,77,"г. Москва",45,"ЦФО"]
["2/10","Подготовка и создание информационно- пропагандистских теле- радиопрограмм, направленных на участников дорожного движения для последующего размещения на федеральных, региональных и кабельных телевизионных каналах, на радиостанциях","Прочие нужды",null,null,null,null,null,null,78,"г. Санкт-Петербург",40,"СЗФО"]
["2/11","Организация в печатных и электронных средствах массовой информации специальных тематических рубрик для систематического освещения проблемных вопросов по безопасности дорожного движения, выпуск специализированной печатной продукции","Прочие нужды",null,null,null,null,null,null,79,"Еврейская автономная область",99,"ДВФО"]
["2/12","Подготовка и издание учебно-методических и наглядных пособий, фильмов и других материалов, а также издание комплектов учебно-методических материалов по курсу дистанционного обучения специалистов, ответственных за обеспечение безопасного функционирования автомобильного транспорта","Прочие нужды",null,null,null,null,null,null,23,"Забайкальский край",76,"СибФО"]
["2/13","Материально-техническое обеспечение Федерального бюджетного учреждения «Агентство автомобильного транспорта» (ФБУ \"Росавтотранс\") (оборудование, программные комплексы) в целях подготовки водителей, повышения квалификации инженерно-технического и руководящего состава автотранспортных предприятий, а также обучения контрольно-надзорных органов в сфере автомобильного транспорта","Прочие нужды",null,null,null,null,null,null,40,"Ивановская область",24,"ЦФО"]
["2/14","Ежегодное проведение всероссийского конкурса профессионального мастерства водителей транспортных средств,  проведение комплексной информационно-пропагандистской кампании, направленной на водителей коммерческого грузового и пассажирского транспорта с целью повышения их ответственности и культуры поведения на дороге,  подготовка телепрограмм ","Прочие нужды",null,null,null,null,null,null,41,"Иркутская область",25,"СибФО"]
["2/15","Учебно-методическое обеспечение (техническими средствами обучения, наглядными, учебными и методическими пособиями, электронными образовательными ресурсами) федеральных центров по подготовке и повышению квалификации специалистов, занимающихся обучением водителей транспортных средств, специалистов по приему квалификационных экзаменов на право управления транспортными средствами различных категорий и подкатегорий, водителей транспортных средств различных категорий, включая водителей  транспортных средств из числа людей с ограниченными физическими возможностями","Прочие нужды",null,null,null,null,null,null,7,"Кабардино-Балкарская Республика",83,"СКФО"]
["2/16","Разработка организационно-методических рекомендаций, обеспечивающих внедрение программ подготовки и переподготовки водителей транспортных средств различных категорий и подкатегорий, мониторинг их применения, в том числе водителей из числа лиц с ограниченными физическими возможностями, специальных методических рекомендаций для создания федеральных центров по подготовке и повышению квалификации специалистов, занимающихся обучением водителей транспортных средств, а также специалистов по приему квалификационных экзаменов на право управления транспортными средствами различных категорий и подкатегорий, по подготовке и переподготовке водителей различных категорий, водителей из числа лиц с ограниченными физическими возможностями","Прочие нужды",null,null,null,null,null,null,42,"Калининградская область",27,"СЗФО"]
["2/17","Издание и рассылка научно-методических материалов, образовательных ресурсов (в том числе электронных) для совершенствования подготовки водителей из числа лиц с ограниченными физическими возможностями","Прочие нужды",null,null,null,null,null,null,43,"Калужская область",29,"ЦФО"]
["3/1","Разработка комплексного проекта профилактики детского дорожно-транспортного травматизма на период 2013-2020 гг., программ, учебно-методических пособий, образовательных ресурсов (в том числе в электронном виде), разработка специализированного интернет-портала по обучению безопасному участию в дорожном движении учащихся, воспитанников дошкольных образовательных организаций и общеобразовательных организаций, организаций дополнительного образования, в том числе с использованием инновационных образовательных продуктов и современных компьютерных технологий","НИОКР",null,null,null,null,null,null,24,"Камчатский край",30,"ДВФО"]
["3/2","Разработка модульных программ повышения квалификации педагогических работников дошкольных образовательных организаций и общеобразовательных организаций, организаций дополнительного образования по вопросам обучения учащихся, воспитанников навыкам безопасного участия в дорожном движении и рекомендаций по их использованию","НИОКР",null,null,null,null,null,null,9,"Карачаево-Черкесская Республика",91,"СКФО"]
["3/3","Разработка оборудования (уголки по правилам дорожного движения, тренажеры, компьютерные программы и т.д.) для образовательных организаций с целью использования их в процессе обучения детей безопасному участию в дорожном движении","НИОКР",null,null,null,null,null,null,44,"Кемеровская область",32,"СибФО"]
["3/4","Разработка программ, учебно-методических материалов по обучению вождению транспортных средств в системе дополнительного образования детей","НИОКР",null,null,null,null,null,null,45,"Кировская область",33,"ПФО"]
["3/5","Приобретение мобильных автогородков для организаций в субъектах Российской Федерации, осуществляющих деятельность по формированию у детей дошкольного и школьного возраста навыков безопасного поведения на улично-дорожной сети (закупка не менее 269 мобильных автогородков)","Капитальные вложения",null,null,null,null,null,null,46,"Костромская область",34,"ЦФО"]
["3/6","Создание федеральных экспериментальных центров (полигонов) \"Детский автогород\" (не менее 3 центров с общей территорией до 4,5 тыс. кв.м учебных помещений (зданий) и 60,0 тыс. кв.м плоскостных сооружений (оборудованные площадки автогородов)","Капитальные вложения",null,null,null,null,null,null,25,"Краснодарский край",3,"ЮФО"]
["3/7","Строительство детских автогородков, организация на их основе базовых учебно-методических центров по изучению детьми, а также педагогическим составом общеобразовательных учреждений, учреждений дополнительного образования детей и дошкольных образовательных учреждений основ безопасного участия в дорожном движении (не менее 40 автогородков, не менее 20 тыс.кв.м.)*","Капитальные вложения",null,null,null,null,null,null,26,"Красноярский край",4,"СибФО"]
["3/8","Приобретение для дошкольных образовательных учреждений оборудования, позволяющего в игровой форме формировать навыки безопасного поведения на улично- дорожной сети (закупка не менее 1390 комплектов учебного оборудования)","Прочие нужды",null,null,null,null,null,null,47,"Курганская область",37,"УрФО"]
["3/9","Обеспечение проведения тематических информационно- пропагандистских мероприятий, межгосударственных слетов, всероссийских конкурсов, фестивалей с несовершеннолетними участниками дорожного движения, в том числе общественными формированиями детей","Прочие нужды",null,null,null,null,null,null,48,"Курская область",38,"ЦФО"]
["3/10","Изготовление и распространение световозвращающих приспособлений в среде дошкольников и учащихся младших классов образовательных учреждений (не менее 15 млн. штук)","Прочие нужды",null,null,null,null,null,null,49,"Ленинградская область",41,"СЗФО"]
["3/11","Разработка организационно-методических рекомендаций, обеспечивающих функционирование системы обучения безопасному участию в дорожном движении и профилактики детского дорожно-транспортного травматизма, а также организационно-методических рекомендаций и образовательных ресурсов, обеспечивающих внедрение программ и организацию обучения вождению транспортных средств различных категорий в образовательных организациях и организациях дополнительного образования, обеспечение деятельности специализированного интернет-портала по обучению безопасному участию в дорожном движении учащихся, воспитанников дошкольных образовательных организаций и общеобразовательных организаций, организаций дополнительного образования","Прочие нужды",null,null,null,null,null,null,50,"Липецкая область",42,"ЦФО"]
["3/12","Проведение всероссийских массовых мероприятий с детьми (конкурсы-фестивали отрядов юных инспекторов движения «Безопасное колесо», профильные смены активистов отрядов юных инспекторов движения, чемпионаты юношеских автошкол по автомногоборью, конкурсы образовательных организаций по профилактике детского дорожно-транспортного травматизма) по профилактике детского дорожно-транспортного травматизма и обучению безопасному участию в дорожном движении","Прочие нужды",null,null,null,null,null,null,51,"Магаданская область",44,"ДВФО"]
["3/13","Издание и рассылка научно-методических материалов, печатных и электронных учебных пособий, образовательных ресурсов для дошкольных образовательных организаций, общеобразовательных организаций и организаций дополнительного образования по обучению детей безопасному участию в дорожном движении (обеспечение образовательных организаций пилотными комплектами учебных пособий и программ), в том числе учебно-методических пособий по работе с родителями и детьми в целях профилактики детских дорожно-транспортных происшествий, проведение родительского Всеобуча, семейных конкурсов на знание правил дорожного движения","Прочие нужды",null,null,null,null,null,null,52,"Московская область",46,"ЦФО"]
["3/14","Мониторинг состояния материальной и учебно-методической базы общеобразовательных организаций по обучению детей правилам дорожного движения и формированию у них навыков безопасного участия в дорожном движении","Прочие нужды",null,null,null,null,null,null,53,"Мурманская область",47,"СЗФО"]
["3/15","Реализация типовых проектов мобильных автогородков (создание опытных образцов мобильных автогородков и проведение их апробации) для обучения с их помощью детей и педагогического состава общеобразовательных и дошкольных образовательных организаций, организаций дополнительного образования основам безопасного участия в дорожном движении (не менее 6 мобильных автогородков)","Прочие нужды",null,null,null,null,null,null,80,"Ненецкий автономный округ",11100,"СЗФО"]
["3/16","Учебно-методическое обеспечение (техническими средствами обучения, наглядными, учебными и методическими пособиями, электронными образовательными ресурсами) федеральных экспериментальных центров (полигонов) «Детский автогород»","Прочие нужды",null,null,null,null,null,null,54,"Нижегородская область",22,"ПФО"]
["3/17","Повышение квалификации (в том числе по модульным курсам) преподавательского состава общеобразовательных организаций, организаций дополнительного образования и дошкольных образовательных организаций в сфере формирования у детей навыков безопасного участия в дорожном движении","Прочие нужды",null,null,null,null,null,null,55,"Новгородская область",49,"СЗФО"]
["3/18","Оснащение техническими средствами обучения, оборудованием и учебно-методическими материалами детских автогородков*","Прочие нужды",null,null,null,null,null,null,56,"Новосибирская область",50,"СибФО"]
["4/1","Проведение научных исследований и разработка рекомендаций по возможности использования современных систем повышения активной безопасности автомобилей с учетом российских условий эксплуатации. Разработка методов оценки эффективности электронных систем контроля устойчивости (EVSC) коммерческих транспортных средств на основании анализа соответствующих международных документов и с учетом российских условий эксплуатации","НИОКР",null,null,null,null,null,null,57,"Омская область",52,"СибФО"]
["4/2","Проведение поисковых исследований и создание перспективных технологий по защите от поражения электрическим током на автомобилях с комбинированной энергетической установкой и электромобилях","НИОКР",null,null,null,null,null,null,58,"Оренбургская область",53,"Пфо"]
["4/3","Проведение научных исследований в области пассивной безопасности транспортных средств, направленных на снижение травмирования водителей, пассажиров и пешеходов при дорожно-транспортных происшествиях","НИОКР",null,null,null,null,null,null,59,"Орловская область",54,"ЦФО"]
["4/4","Проведение научных исследований с целью создания перспективной методологии подготовки водителей транспортных средств на базе компьютерных обучающих программ и модельного ряда автотренажеров различной степени сложности","НИОКР",null,null,null,null,null,null,60,"Пензенская область",56,"ПФО"]
["4/5","Обоснование технических требований и адаптация конструкций транспортных средств с компонентами электронных систем, обеспечивающих выполнение перспективных требований технического законодательства в области безопасности колесных транспортных средств, посредством внедрения элементов интеллектуальных транспортных систем в целях повышения активной безопасности: системы автоматической регистрации параметров движения транспортных средств; системы регистрации параметров дорожно-транспортных происшествий; системы автоматического экстренного торможения (AEBS); системы предупреждения о выходе с полосы движения (LDWS); электронных систем контроля устойчивости и помощи водителю при экстренном торможении; систем мониторинга давления воздуха в шинах; систем контроля состояния водителя и т.п.","Прочие нужды",null,null,null,null,null,null,27,"Пермский край",57,"ПФО"]
["4/6","Разработка прикладных программ моделирования движения транспортных средств для расчета параметров активной безопасности. Проведение виртуальных исследований движения транспортных средств с интеллектуальными системами активной безопасности в различных критических и экстремальных условиях","Прочие нужды",null,null,null,null,null,null,28,"Приморский край",5,"ДВФО"]
["4/7","Материально-техническое, метрологическое и методологическое обеспечение проведения научных исследований по повышению активной и пассивной безопасности транспортных средств","Прочие нужды",null,null,null,null,null,null,61,"Псковская область",58,"СЗФО"]
["5/1","Проведение научных исследований, направленных на разработку современных методов организации дорожного движения, в том числе основанных на исследовании влияния режимов движения транспортных потоков на безопасность дорожного движения","НИОКР",null,null,null,null,null,null,1,"Республика Адыгея (Адыгея)",79,"ЮФО"]
["5/2","Разработка научно обоснованных предложений по созданию, развитию и функционированию единого парковочного пространства в городах Российской Федерации","НИОКР",null,null,null,null,null,null,2,"Республика Алтай",84,"СибФО"]
["5/3","Разработка научно обоснованных предложений по системе оценки качества и эффективности организации дорожного движения в Российской Федерации","НИОКР",null,null,null,null,null,null,3,"Республика Башкортостан",80,"ПФО"]
["5/4","Разработка методики проведения аудита безопасности движения при проектировании, строительстве и эксплуатации автомобильных дорог","НИОКР",null,null,null,null,null,null,4,"Республика Бурятия",81,"СибФО"]
["5/5","Разработка нормативно-методических документов по созданию и развитию интеллектуальных транспортных систем","НИОКР",null,null,null,null,null,null,5,"Республика Дагестан",82,"СКФО"]
["5/6","Строительство в местах повышенной аварийности в городах и населенных пунктах быстровозводимых конструкций надземных пешеходных переходов (не менее 300)","Капитальные вложения",null,null,null,null,null,null,6,"Республика Ингушетия",26,"СКФО"]
["5/7","Реконструкция, строительство на участках улично- дорожной сети городов и населенных пунктов пешеходных ограждений, в том числе в зоне пешеходных переходов (не менее 809 км)","Капитальные вложения",null,null,null,null,null,null,8,"Республика Калмыкия",85,"ЮФО"]
["5/8","Строительство, реконструкция, техническое перевооружение нерегулируемых пешеходных переходов, в том числе непосредственно прилегающих к дошкольным образовательным учреждениям, общеобразовательным учреждениям и учреждениям дополнительного образования детей, освещением, искусственными дорожными неровностями, светофорами Т.7, системами светового оповещения, дорожными знаками с внутренним освещением и светодиодной индикацией, Г-образными опорами, дорожной разметкой, в том числе с применением штучных форм и цветных дорожных покрытий, световозвращателями и индикаторами, а также устройствами дополнительного освещения и другими элементами повышения безопасности дорожного движения (не менее 2427 переходов)","Капитальные вложения",null,null,null,null,null,null,10,"Республика Карелия",86,"СЗФО"]
["5/9","Строительство, реконструкция, техническое перевооружение светофорных объектов (не менее 2874)","Капитальные вложения",null,null,null,null,null,null,11,"Республика Коми",87,"СЗФО"]
["5/10","Строительство, реконструкция, техническое перевооружение пересечений на автомобильных дорогах общего пользования федерального значения с целью увеличения пропускной способности и совершенствования организации дорожного движения (не менее 81 пересечения)","Капитальные вложения",null,null,null,null,null,null,12,"Республика Марий Эл",88,"ПФО"]
["5/11","Строительство, реконструкция, техническое перевооружение (оборудование искусственным освещением) мест концентрации дорожно-транспортных происшествий на участках автомобильных дорог общего пользования федерального значения, проходящим по территориям населённых пунктов (не менее 144 мест концентрации ДТП)","Капитальные вложения",null,null,null,null,null,null,13,"Республика Мордовия",89,"ПФО"]
["5/12","Разработка комплексных схем организации дорожного движения, проектов автоматизированных систем управления дорожным движением, организация работ по анализу доступности услуг транспортной системы  на сети автомобильных дорог, прилегающих к границам Санкт-Петербурга и Ленинградской области","Прочие нужды",null,null,null,null,null,null,14,"Республика Саха (Якутия)",98,"ДВФО"]
["5/13","Проведение специализированных обучающих конференций и семинаров, посвященных вопросам совершенствования организации дорожного движения, освещение проблем организации дорожного движения в средствах массовой информации","Прочие нужды",null,null,null,null,null,null,15,"Республика Северная Осетия - Алания",90,"СКФО"]
["5/14","Подготовка ежегодных аналитических обзоров и предложений по совершенствованию законодательного и нормативно-правового регулирования в сфере обеспечения безопасности автомобильных перевозок пассажиров и грузов","Прочие нужды",null,null,null,null,null,null,16,"Республика Татарстан (Татарстан)",92,"ПФО"]
["5/15","Освещение проблем организации дорожного движения в средствах массовой информации","Прочие нужды",null,null,null,null,null,null,17,"Республика Тыва",93,"СибФО"]
["5/16","Разработка программного продукта по информационному обмену данными между Росавтодором, ГИБДД и МЧС России","Прочие нужды",null,null,null,null,null,null,19,"Республика Хакасия",95,"СибФО"]
["6/1","Проведение научных исследований, направленных на совершенствование нормативной и методической базы в области ликвидации последствий дорожно-транспортных происшествий","НИОКР",null,null,null,null,null,null,62,"Ростовская область",60,"ЮФО"]
["6/2","Разработка научно-обоснованных предложений по совершенствованию информационно-аналитического обеспечения функционирования системы ликвидации последствий дорожно-транспортных происшествий","НИОКР",null,null,null,null,null,null,63,"Рязанская область",61,"ЦФО"]
["6/3","Строительство учебно-тренировочного комплекса для подготовки сотрудников МЧС России и отработки действий экстренных служб, участвующих в ликвидации последствий дорожно-транспортных происшествий в Сибирском федеральном округе (п. Дивногорск, Красноярский край, не менее 1,7 тыс. кв.м.)    ","Капитальные вложения",null,null,null,null,null,null,64,"Самарская область",36,"ПФО"]
["6/4","Строительство, реконструкция натурных площадок для отработки современных методов и способов ликвидации последствий дорожно-транспортных происшествий (не менее 800 кв.м)","Капитальные вложения",null,null,null,null,null,null,65,"Саратовская область",63,"ПФО"]
["6/5","Внедрение современных образцов специальной  техники, инструмента, оборудования и технологий, предназначенных для проведения аварийно-спасательных работ, в подразделения МЧС России, привлекаемые к ликвидации последствий дорожно-транспортных происшествий","Прочие нужды",null,null,null,null,null,null,66,"Сахалинская область",64,"ДВФО"]
["6/6","Практическая отработка вопросов взаимодействия экстренных служб и проведения аварийно-спасательных работ при ликвидации последствий дорожно-транспортных происшествий","Прочие нужды",null,null,null,null,null,null,67,"Свердловская область",65,"УрФО"]
["6/7","Организационно-методическое и техническое обеспечение подразделений МЧС России, осуществляющих профессиональную подготовку и повышение квалификации личного состава, принимающего участие в ликвидации дорожно-транспортных происшествий","Прочие нужды",null,null,null,null,null,null,68,"Смоленская область",66,"ЦФО"]
["6/8","Участие МЧС России в коммуникативных мероприятиях (конференциях, форумах, выставках и иных общественных  мероприятиях) в области безопасности дорожного движения и оказания помощи пострадавшим в дорожно-транспортных происшествиях","Прочие нужды",null,null,null,null,null,null,29,"Ставропольский край",7,"СКФО"]
["6/9","Развитие Центра мониторинга ликвидации последствий дорожно-транспортных происшествий МЧС России","Прочие нужды",null,null,null,null,null,null,69,"Тамбовская область",68,"ЦФО"]
["6/10","Разработка информационных и методических материалов для взрослой и детской аудиторий, информирующих о правилах оказания первой помощи пострадавшим в дорожно-транспортных происшествиях ","Прочие нужды",null,null,null,null,null,null,70,"Тверская область",28,"ЦФО"]
["6/11","Тиражирование и распространение информационных и методических материалов для взрослой и детской аудиторий, информирующих о правилах оказания первой помощи пострадавшим в дорожно-транспортных происшествиях ","Прочие нужды",null,null,null,null,null,null,71,"Томская область",69,"СибФО"]
["6/12","Оснащение медицинских организаций автомобилями скорой медицинской помощи класса «С» для оказания скорой медицинской помощи пациентам, пострадавшим при дорожно-транспортных происшествиях","Прочие нужды",null,null,null,null,null,null,72,"Тульская область",70,"ЦФО"]
["6/13","Проведение всероссийского конкурса профессионального мастерства среди работников скорой медицинской помощи, медицины катастроф и работников экстренных оперативных служб по оказанию первой и медицинской помощи, пострадавших при дорожно-транспортных происшествиях","Прочие нужды",null,null,null,null,null,null,73,"Тюменская область",71,"УрФО"]
["7/1","Разработка механизма по установлению индивидуальных целевых заданий для субъектов Российской Федерации по снижению уровня дорожно-транспортной аварийности на период до 2020 года и закреплению субсидиарной ответственности федерального центра и субъектов Российской Федерации за достижение целей деятельности по обеспечению безопасности дорожного движения","НИОКР",null,null,null,null,null,null,18,"Удмуртская Республика",94,"ПФО"]
["7/2","Изучение существующих положений и построение научно-обоснованных моделей разграничения полномочий (сфер ответственности) органов исполнительной власти различного уровня, органов местного самоуправления","НИОКР",null,null,null,null,null,null,74,"Ульяновская область",73,"ПФО"]
["7/3","Проведение комплексных научных исследований, направленных на создание аналитических методов поддержки принятия решений и управления в сфере безопасности дорожного движения с учетом федерального, регионального и местного аспектов, а также разработке механизмов комплексной оценки и анализа эффективности и результативности текущей и программной деятельности","НИОКР",null,null,null,null,null,null,30,"Хабаровский край",8,"ДВФО"]
["7/4","Разработка действенных механизмов по привлечению внебюджетных финансовых средств в приоритетные проекты обеспечения безопасности дорожного движения, развитию государственно-частного партнерства, созданию эффективных саморегулируемых организаций, а также методов аутсорсинга в сфере обеспечения безопасности дорожного движения","НИОКР",null,null,null,null,null,null,81,"Ханты-Мансийский автономный округ - Югра",71100,"УрФО"]
["7/5","Проведение научных исследований в области применения программных продуктов математического моделирования транспортных потоков при разработке комплексных схем организации дорожного движения, проектов организации дорожного движения, а также проектов автоматизированных систем управления дорожным движением. Разработка предложений по нормативному и методическому обеспечению использования программных продуктов при проектировании в сфере организации дорожного движения","НИОКР",null,null,null,null,null,null,75,"Челябинская область",75,"УрФО"]
["7/6","Текущее управление Программой (содержание федерального казенного учреждения «Дирекция по управлению федеральной целевой программой «Повышение безопасности дорожного движения в 2006 - 2012 годах» )","Прочие нужды",null,null,null,null,null,null,20,"Чеченская Республика",96,"СКФО"]
["7/7","Проведение специализированных семинаров, посвященных обмену опытом в деятельности по обеспечению безопасности дорожного движения и внедрению на региональном и муниципальном уровнях результатов научно-исследовательских и опытно- конструкторских работ, выполненных в рамках реализации Программы","Прочие нужды",null,null,null,null,null,null,21,"Чувашская Республика - Чувашия",97,"ПФО"]
["7/8","Создание аналитических систем управления безопасностью дорожного движения МВД России","Прочие нужды",null,null,null,null,null,null,82,"Чукотский автономный округ",82,"ДВФО"]
["7/9","Подготовка и периодическое повышение квалификации работников управлений госавтодорнадзора Ространснадзора по осуществлению контрольно-надзорных функций по соблюдению владельцами транспортных средств установленных требований по параметрам перевозок (режим труда и отдыха водителей, скоростной режим движения и т.п.) с применением цифровых тахографов","Прочие нужды",null,null,null,null,null,null,83,"Ямало-Ненецкий автономный округ",71140,"УрФО"]
[" - ",null,null,null,null,null,null,null,null,76,"Ярославская область",78,"ЦФО"]
["источники финансирования"]
["РБ"]
["МБ"]
["ВБИ"]

{"sheet":"Перечень программ","index":2,"n_rows":7,"n_cols":3,"rows_kept":7,"cut":false,"hidden":false,"merged":[]}
[null,null,"Приложение к отчету"]
["Код пр.","Наименования региональной программы (подпрограммы), муниципальных программ (подпрограмм), направленных на сокращение числа лиц, погибающих в результате дорожно-транспортных происшествий, и повышение уровня безопасности дорожного движения","Наименование нормативно-правового акта, утвердившего программу, с учетом последней редакции"]
["вп"]
[1,"Государственная программа \"Повышение безопасности дорожного движения в Астраханской области на 2013-2017 годы\"","Постановление Правительства Астраханской области от 08.11.2012 № 467-ПР (в редакциит от 21.10.2013 № 414-П)"]
[2,"Отраслевая долгосрочная целевая программа «Развитие дорожного хозяйства Астраханской области на 2012-2016 годы и перспективу до 2020 года»","Постановление Правительства астраханской области от 07.11.2011 № 440-П (в редакции от 26.12.2013 № 590-П)"]
[3,"«Об утверждении долгосрочной целевой Программы муниципального образования «Город Астрахань» «Повышение безопасности дорожного движения в городе Астрахани на 2012-2014 годы» ","Постановление администрации города Астрахани от 10.01.2011 №9485 (редакция от 28.11.2013 № 10680)"]
["…"]

{"sheet":"Перечень мероприятий ФЦП","index":3,"n_rows":103,"n_cols":6,"rows_kept":103,"cut":false,"hidden":false,"merged":[[43,0,43,3],[56,0,56,3],[64,0,64,3],[90,0,90,3],[77,0,77,3],[5,0,5,3],[10,0,10,3],[17,0,17,3],[22,0,22,3],[29,0,29,3]]}
[]
[]
[]
[null,"Перечень софинансируемых мероприятий ФЦП\nв соответствии с Постановлением Правительства Российской Федерации от 03.10.2013 № 864."]
["КОД\n(графа 4)","НАИМЕНОВАНИЕ","ВИД РАСХОДОВ","Госзаказчик"]
["Мероприятия, направленные на развитие системы предупреждения опасного поведения участников дорожного движения\n(приложение № 2 к федеральной целевой программе \"Повышение безопасности дорожного движения в 2013 - 2020 годах)"]
["2/5","Оснащение системами автоматического контроля и выявления нарушений правил дорожного движения улично-дорожной сети городов и населенных пунктов, дорог регионального и муниципального значения (не менее 3936 комплексов)","Капитальные вложения","МВД России",1]
["2/8","Создание и тиражирование и передача конечным пользователям учебно-методических и наглядных пособий, учебных фильмов, игр, программ для участников дорожного движения разных возрастных категорий, в том числе с использованием мультимедийных средств, освещающих вопросы безопасности дорожного движения","Прочие нужды","МВД России",1]
["2/10","Подготовка и создание информационно- пропагандистских теле- радиопрограмм, направленных на участников дорожного движения для последующего размещения на федеральных, региональных и кабельных телевизионных каналах, на радиостанциях","Прочие нужды","МВД России",1]
["2/11","Организация в печатных и электронных средствах массовой информации специальных тематических рубрик для систематического освещения проблемных вопросов по безопасности дорожного движения, выпуск специализированной печатной продукции","Прочие нужды","МВД России",1]
["Мероприятия, направленные на обеспечение безопасного участия детей в дорожном движении\n(приложение № 3 к федеральной целевой программе \"Повышение безопасности дорожного движения в 2013 - 2020 годах)"]
["3/5","Приобретение мобильных автогородков для организаций в субъектах Российской Федерации, осуществляющих деятельность по формированию у детей дошкольного и школьного возраста навыков безопасного поведения на улично-дорожной сети (закупка не менее 269 мобильных автогородков)","Капитальные вложения","МВД России",1]
["3/7","Строительство детских автогородков, организация на их основе базовых учебно-методических центров по изучению детьми, а также педагогическим составом общеобразовательных учреждений, учреждений дополнительного образования детей и дошкольных образовательных учреждений основ безопасного участия в дорожном движении (не менее 40 автогородков, не менее 20 тыс.кв.м.)","Капитальные вложения","Минобрнауки России",1]
["3/8","Приобретение для дошкольных образовательных учреждений оборудования, позволяющего в игровой форме формировать навыки безопасного поведения на улично- дорожной сети (закупка не менее 1390 комплектов учебного оборудования)","Прочие нужды","МВД России",1]
["3/9","Обеспечение проведения тематических информационно- пропагандистских мероприятий, межгосударственных слетов, всероссийских конкурсов, фестивалей с несовершеннолетними участниками дорожного движения, в том числе общественными формированиями детей","Прочие нужды","МВД России",1]
["3/10","Изготовление и распространение световозвращающих приспособлений в среде дошкольников и учащихся младших классов образовательных учреждений (не менее 15 млн. штук)","Прочие нужды","МВД России",1]
["3/18","Оснащение техническими средствами обучения, оборудованием и учебно-методическими материалами детских автогородков","Прочие нужды","Минобрнауки России",1]
["Мероприятия, направленные на развитие системы организации движения транспортных средств и пешеходов и повышение безопасности дорожных условий\n(приложение № 5 к федеральной целевой программе \"Повышение безопасности дорожного движения в 2013 - 2020 годах)"]
["5/6","Строительство в местах повышенной аварийности в городах и населенных пунктах быстровозводимых конструкций надземных пешеходных переходов (не менее 300)","Капитальные вложения","МВД России",1]
["5/7","Реконструкция, строительство на участках улично- дорожной сети городов и населенных пунктов пешеходных ограждений, в том числе в зоне пешеходных переходов (не менее 809 км)","Капитальные вложения","МВД России",1]
["5/8","Строительство, реконструкция, техническое перевооружение нерегулируемых пешеходных переходов, в том числе непосредственно прилегающих к дошкольным образовательным учреждениям, общеобразовательным учреждениям и учреждениям дополнительного образования детей, освещением, искусственными дорожными неровностями, светофорами Т.7, системами светового оповещения, дорожными знаками с внутренним освещением и светодиодной индикацией, Г-образными опорами, дорожной разметкой, в том числе с применением штучных форм и цветных дорожных покрытий, световозвращателями и индикаторами, а также устройствами дополнительного освещения и другими элементами повышения безопасности дорожного движения (не менее 2427 переходов)","Капитальные вложения","МВД России",1]
["5/9","Строительство, реконструкция, техническое перевооружение светофорных объектов (не менее 2874)","Капитальные вложения","МВД России",1]
["Мероприятия, направленные на развитие системы оказания помощи пострадавшим в дорожно-транспортных происшествиях\n(приложение № 6 к федеральной целевой программе \"Повышение безопасности дорожного движения в 2013 - 2020 годах)"]
["6/12","Оснащение медицинских организаций автомобилями скорой медицинской помощи класса «С» для оказания скорой медицинской помощи пациентам, пострадавшим при дорожно-транспортных происшествиях","Прочие нужды","Минздрав России",1]
[]
[]
[]
[null,"Перечень мероприятий ФЦП\nв соответствии с Постановлением Правительства Российской Федерации от 03.10.2013 № 864 (без учета софинансируемых мероприятий).\nМероприятия сгруппированы по видам расходов и направлениям."]
["КОД\n(графа 4)","НАИМЕНОВАНИЕ","ВИД РАСХОДОВ","Госзаказчик"]
["Мероприятия, направленные на развитие системы предупреждения опасного поведения участников дорожного движения\n(приложение № 2 к федеральной целевой программе \"Повышение безопасности дорожного движения в 2013 - 2020 годах\")"]
["2/6","Техническое перевооружение, строительство, реконструкция центров по подготовке (переподготовке), дополнительного профессионального образования, повышения квалификации специалистов в области обеспечения безопасности дорожного движения (не менее 10,2 тыс. кв.м.)","Капитальные вложения","МВД России",null,1]
["2/7","Создание 3 федеральных центров по подготовке и повышению квалификации специалистов, занимающихся обучением водителей транспортных средств, специалистов по приему квалификационных экзаменов на право управления транспортными средствами различных категорий и подкатегорий, водителей транспортных средств различных категорий, включая водителей  транспортных средств из числа людей с ограниченными физическими возможностями, подготовке и повышению квалификации специалистов по обучению управлению транспортными средствами лиц с ограниченными физическими возможностями на базе образовательных организаций высшего образования (до 3,0 тыс. кв.м. учебных помещений (зданий) и 30,0 тыс. кв.м. плоскостных сооружений (оборудованные площадки по обучению)","Капитальные вложения","Минобрнауки России",null,1]
["2/9","Проведение информационно-пропагандистских кампаний, использующих наиболее действенные каналы коммуникации, с целью повышения грамотности, ответственности и уровня самосознания участников дорожного движения и профилактики факторов риска, влияющих на количество и тяжесть дорожно-транспортных происшествий","Прочие нужды","МВД России",null,1]
["2/12","Подготовка и издание учебно-методических и наглядных пособий, фильмов и других материалов, а также издание комплектов учебно-методических материалов по курсу дистанционного обучения специалистов, ответственных за обеспечение безопасного функционирования автомобильного транспорта","Прочие нужды","Минтранс России",null,1]
["2/13","Материально-техническое обеспечение Федерального бюджетного учреждения «Агентство автомобильного транспорта» (ФБУ \"Росавтотранс\") (оборудование, программные комплексы) в целях подготовки водителей, повышения квалификации инженерно-технического и руководящего состава автотранспортных предприятий, а также обучения контрольно-надзорных органов в сфере автомобильного транспорта","Прочие нужды","Минтранс России",null,1]
["2/14","Ежегодное проведение всероссийского конкурса профессионального мастерства водителей транспортных средств,  проведение комплексной информационно-пропагандистской кампании, направленной на водителей коммерческого грузового и пассажирского транспорта с целью повышения их ответственности и культуры поведения на дороге,  подготовка телепрограмм ","Прочие нужды","Минтранс России",null,1]
["2/15","Учебно-методическое обеспечение (техническими средствами обучения, наглядными, учебными и методическими пособиями, электронными образовательными ресурсами) федеральных центров по подготовке и повышению квалификации специалистов, занимающихся обучением водителей транспортных средств, специалистов по приему квалификационных экзаменов на право управления транспортными средствами различных категорий и подкатегорий, водителей транспортных средств различных категорий, включая водителей  транспортных средств из числа людей с ограниченными физическими возможностями","Прочие нужды","Минобрнауки России",null,1]
["2/16","Разработка организационно-методических рекомендаций, обеспечивающих внедрение программ подготовки и переподготовки водителей транспортных средств различных категорий и подкатегорий, мониторинг их применения, в том числе водителей из числа лиц с ограниченными физическими возможностями, специальных методических рекомендаций для создания федеральных центров по подготовке и повышению квалификации специалистов, занимающихся обучением водителей транспортных средств, а также специалистов по приему квалификационных экзаменов на право управления транспортными средствами различных категорий и подкатегорий, по подготовке и переподготовке водителей различных категорий, водителей из числа лиц с ограниченными физическими возможностями","Прочие нужды","Минобрнауки России",null,1]
["2/17","Издание и рассылка научно-методических материалов, образовательных ресурсов (в том числе электронных) для совершенствования подготовки водителей из числа лиц с ограниченными физическими возможностями","Прочие нужды","Минобрнауки России",null,1]
["2/1","Выполнение комплексных научных исследований с применением методов математического анализа в области систематизации и оценки эффективности средств повышения и контроля безопасности дорожного движения, в том числе разработка типовых решений и макетов для практического внедрения  наиболее эффективных средств в практику профилактики дорожно-транспортных происшествий на федеральном, региональном и муниципальном уровнях","НИОКР","МВД России",null,1]
["2/2","Проведение научных исследований, разработка условий и требований по нормативно-правовому обеспечению внедрения и развития сервисов интеллектуальных транспортных систем в сфере обеспечения безопасности дорожного движения, повышения качества функционирования региональных транспортных систем и работы автомобильного транспорта","НИОКР","Минтранс России",null,1]
["2/3","Разработка научно-обоснованных предложений по совершенствованию системы подготовки и непрерывного повышения квалификации специалистов, ответственных за обеспечение безопасного функционирования автомобильного транспорта, и ее гармонизации с международной системой профессиональной подготовки. Разработка курсов дистанционного обучения и методики оценки освоения учебных материалов при дистанционной форме обучения","НИОКР","Минтранс России",null,1]
["2/4","Разработка комплексного проекта совершенствования системы подготовки водителей транспортных средств различных категорий, включая водителей из числа лиц с ограниченными физическими возможностями, организационно-методических рекомендаций, программ, учебных и методических пособий, образовательных ресурсов (в том числе в электронном виде) по обучению вождению транспортных средств различных категорий","НИОКР","Минобрнауки России",null,1]
["Мероприятия, направленные на обеспечение безопасного участия детей в дорожном движении\n(приложение № 3 к федеральной целевой программе \"Повышение безопасности дорожного движения в 2013 - 2020 годах\")"]
["3/6","Создание федеральных экспериментальных центров (полигонов) \"Детский автогород\" (не менее 3 центров с общей территорией до 4,5 тыс. кв.м учебных помещений (зданий) и 60,0 тыс. кв.м плоскостных сооружений (оборудованные площадки автогородов)","Капитальные вложения","Минобрнауки России",null,1]
["3/11","Разработка организационно-методических рекомендаций, обеспечивающих функционирование системы обучения безопасному участию в дорожном движении и профилактики детского дорожно-транспортного травматизма, а также организационно-методических рекомендаций и образовательных ресурсов, обеспечивающих внедрение программ и организацию обучения вождению транспортных средств различных категорий в образовательных организациях и организациях дополнительного образования, обеспечение деятельности специализированного интернет-портала по обучению безопасному участию в дорожном движении учащихся, воспитанников дошкольных образовательных организаций и общеобразовательных организаций, организаций дополнительного образования","Прочие нужды","Минобрнауки России",null,1]
["3/12","Проведение всероссийских массовых мероприятий с детьми (конкурсы-фестивали отрядов юных инспекторов движения «Безопасное колесо», профильные смены активистов отрядов юных инспекторов движения, чемпионаты юношеских автошкол по автомногоборью, конкурсы образовательных организаций по профилактике детского дорожно-транспортного травматизма) по профилактике детского дорожно-транспортного травматизма и обучению безопасному участию в дорожном движении","Прочие нужды","Минобрнауки России",null,1]
["3/13","Издание и рассылка научно-методических материалов, печатных и электронных учебных пособий, образовательных ресурсов для дошкольных образовательных организаций, общеобразовательных организаций и организаций дополнительного образования по обучению детей безопасному участию в дорожном движении (обеспечение образовательных организаций пилотными комплектами учебных пособий и программ), в том числе учебно-методических пособий по работе с родителями и детьми в целях профилактики детских дорожно-транспортных происшествий, проведение родительского Всеобуча, семейных конкурсов на знание правил дорожного движения","Прочие нужды","Минобрнауки России",null,1]
["3/14","Мониторинг состояния материальной и учебно-методической базы общеобразовательных организаций по обучению детей правилам дорожного движения и формированию у них навыков безопасного участия в дорожном движении","Прочие нужды","Минобрнауки России",null,1]
["3/15","Реализация типовых проектов мобильных автогородков (создание опытных образцов мобильных автогородков и проведение их апробации) для обучения с их помощью детей и педагогического состава общеобразовательных и дошкольных образовательных организаций, организаций дополнительного образования основам безопасного участия в дорожном движении (не менее 6 мобильных автогородков)","Прочие нужды","Минобрнауки России",null,1]
["3/16","Учебно-методическое обеспечение (техническими средствами обучения, наглядными, учебными и методическими пособиями, электронными образовательными ресурсами) федеральных экспериментальных центров (полигонов) «Детский автогород»","Прочие нужды","Минобрнауки России",null,1]
["3/17","Повышение квалификации (в том числе по модульным курсам) преподавательского состава общеобразовательных организаций, организаций дополнительного образования и дошкольных образовательных организаций в сфере формирования у детей навыков безопасного участия в дорожном движении","Прочие нужды","Минобрнауки России",null,1]
["3/1","Разработка комплексного проекта профилактики детского дорожно-транспортного травматизма на период 2013-2020 гг., программ, учебно-методических пособий, образовательных ресурсов (в том числе в электронном виде), разработка специализированного интернет-портала по обучению безопасному участию в дорожном движении учащихся, воспитанников дошкольных образовательных организаций и общеобразовательных организаций, организаций дополнительного образования, в том числе с использованием инновационных образовательных продуктов и современных компьютерных технологий","НИОКР","Минобрнауки России",null,1]
["3/2","Разработка модульных программ повышения квалификации педагогических работников дошкольных образовательных организаций и общеобразовательных организаций, организаций дополнительного образования по вопросам обучения учащихся, воспитанников навыкам безопасного участия в дорожном движении и рекомендаций по их использованию","НИОКР","Минобрнауки России",null,1]
["3/3","Разработка оборудования (уголки по правилам дорожного движения, тренажеры, компьютерные программы и т.д.) для образовательных организаций с целью использования их в процессе обучения детей безопасному участию в дорожном движении","НИОКР","Минобрнауки России",null,1]
["3/4","Разработка программ, учебно-методических материалов по обучению вождению транспортных средств в системе дополнительного образования детей","НИОКР","Минобрнауки России",null,1]
["Мероприятия, направленные на повышение уровня технического состояния эксплуатирующихся транспортных средств, их активной и пассивной безопасности\n(приложение № 4 к федеральной целевой программе \"Повышение безопасности дорожного движения в 2013 - 2020 годах\")"]
["4/5","Обоснование технических требований и адаптация конструкций транспортных средств с компонентами электронных систем, обеспечивающих выполнение перспективных требований технического законодательства в области безопасности колесных транспортных средств, посредством внедрения элементов интеллектуальных транспортных систем в целях повышения активной безопасности: системы автоматической регистрации параметров движения транспортных средств; системы регистрации параметров дорожно-транспортных происшествий; системы автоматического экстренного торможения (AEBS); системы предупреждения о выходе с полосы движения (LDWS); электронных систем контроля устойчивости и помощи водителю при экстренном торможении; систем мониторинга давления воздуха в шинах; систем контроля состояния водителя и т.п.","Прочие нужды","Минпромторг России",null,1]
["4/6","Разработка прикладных программ моделирования движения транспортных средств для расчета параметров активной безопасности. Проведение виртуальных исследований движения транспортных средств с интеллектуальными системами активной безопасности в различных критических и экстремальных условиях","Прочие нужды","Минпромторг России",null,1]
["4/7","Материально-техническое, метрологическое и методологическое обеспечение проведения научных исследований по повышению активной и пассивной безопасности транспортных средств","Прочие нужды","Минпромторг России",null,1]
["4/1","Проведение научных исследований и разработка рекомендаций по возможности использования современных систем повышения активной безопасности автомобилей с учетом российских условий эксплуатации. Разработка методов оценки эффективности электронных систем контроля устойчивости (EVSC) коммерческих транспортных средств на основании анализа соответствующих международных документов и с учетом российских условий эксплуатации","НИОКР","Минпромторг России",null,1]
["4/2","Проведение поисковых исследований и создание перспективных технологий по защите от поражения электрическим током на автомобилях с комбинированной энергетической установкой и электромобилях","НИОКР","Минпромторг России",null,1]
["4/3","Проведение научных исследований в области пассивной безопасности транспортных средств, направленных на снижение травмирования водителей, пассажиров и пешеходов при дорожно-транспортных происшествиях","НИОКР","Минпромторг России",null,1]
["4/4","Проведение научных исследований с целью создания перспективной методологии подготовки водителей транспортных средств на базе компьютерных обучающих программ и модельного ряда автотренажеров различной степени сложности","НИОКР","Минпромторг России",null,1]
["Мероприятия, направленные на развитие системы организации движения транспортных средств и пешеходов и повышение безопасности дорожных условий\n(приложение № 5 к федеральной целевой программе \"Повышение безопасности дорожного движения в 2013 - 2020 годах\")"]
["5/10","Строительство, реконструкция, техническое перевооружение пересечений на автомобильных дорогах общего пользования федерального значения с целью увеличения пропускной способности и совершенствования организации дорожного движения (не менее 81 пересечения)","Капитальные вложения","Росавтодор",null,1]
["5/11","Строительство, реконструкция, техническое перевооружение (оборудование искусственным освещением) мест концентрации дорожно-транспортных происшествий на участках автомобильных дорог общего пользования федерального значения, проходящим по территориям населённых пунктов (не менее 144 мест концентрации ДТП)","Капитальные вложения","Росавтодор",null,1]
["5/12","Разработка комплексных схем организации дорожного движения, проектов автоматизированных систем управления дорожным движением, организация работ по анализу доступности услуг транспортной системы  на сети автомобильных дорог, прилегающих к границам Санкт-Петербурга и Ленинградской области","Прочие нужды","Минтранс России",null,1]
["5/13","Проведение специализированных обучающих конференций и семинаров, посвященных вопросам совершенствования организации дорожного движения, освещение проблем организации дорожного движения в средствах массовой информации","Прочие нужды","Минтранс России",null,1]
["5/14","Подготовка ежегодных аналитических обзоров и предложений по совершенствованию законодательного и нормативно-правового регулирования в сфере обеспечения безопасности автомобильных перевозок пассажиров и грузов","Прочие нужды","Минтранс России",null,1]
["5/15","Освещение проблем организации дорожного движения в средствах массовой информации","Прочие нужды","Росавтодор",null,1]
["5/16","Разработка программного продукта по информационному обмену данными между Росавтодором, ГИБДД и МЧС России","Прочие нужды","Росавтодор",null,1]
["5/1","Проведение научных исследований, направленных на разработку современных методов организации дорожного движения, в том числе основанных на исследовании влияния режимов движения транспортных потоков на безопасность дорожного движения","НИОКР","Минтранс России",null,1]
["5/2","Разработка научно обоснованных предложений по созданию, развитию и функционированию единого парковочного пространства в городах Российской Федерации","НИОКР","Минтранс России",null,1]
["5/3","Разработка научно обоснованных предложений по системе оценки качества и эффективности организации дорожного движения в Российской Федерации","НИОКР","Минтранс России",null,1]
["5/4","Разработка методики проведения аудита безопасности движения при проектировании, строительстве и эксплуатации автомобильных дорог","НИОКР","Росавтодор",null,1]
["5/5","Разработка нормативно-методических документов по созданию и развитию интеллектуальных транспортных систем","НИОКР","Росавтодор",null,1]
["Мероприятия, направленные на развитие системы оказания помощи пострадавшим в дорожно-транспортных происшествиях\n(приложение № 6 к федеральной целевой программе \"Повышение безопасности дорожного движения в 2013 - 2020 годах\")"]
["6/3","Строительство учебно-тренировочного комплекса для подготовки сотрудников МЧС России и отработки действий экстренных служб, участвующих в ликвидации последствий дорожно-транспортных происшествий в Сибирском федеральном округе (п. Дивногорск, Красноярский край, не менее 1,7 тыс. кв.м.)    ","Капитальные вложения","МЧС России",null,1]
["6/4","Строительство, реконструкция натурных площадок для отработки современных методов и способов ликвидации последствий дорожно-транспортных происшествий (не менее 800 кв.м)","Капитальные вложения","МЧС России",null,1]
["6/10","Разработка информационных и методических материалов для взрослой и детской аудиторий, информирующих о правилах оказания первой помощи пострадавшим в дорожно-транспортных происшествиях ","Прочие нужды","Минздрав России",null,1]
["6/11","Тиражирование и распространение информационных и методических материалов для взрослой и детской аудиторий, информирующих о правилах оказания первой помощи пострадавшим в дорожно-транспортных происшествиях ","Прочие нужды","Минздрав России",null,1]
["6/13","Проведение всероссийского конкурса профессионального мастерства среди работников скорой медицинской помощи, медицины катастроф и работников экстренных оперативных служб по оказанию первой и медицинской помощи, пострадавших при дорожно-транспортных происшествиях","Прочие нужды","Минздрав России",null,1]
["6/5","Внедрение современных образцов специальной  техники, инструмента, оборудования и технологий, предназначенных для проведения аварийно-спасательных работ, в подразделения МЧС России, привлекаемые к ликвидации последствий дорожно-транспортных происшествий","Прочие нужды","МЧС России",null,1]
["6/6","Практическая отработка вопросов взаимодействия экстренных служб и проведения аварийно-спасательных работ при ликвидации последствий дорожно-транспортных происшествий","Прочие нужды","МЧС России",null,1]
["6/7","Организационно-методическое и техническое обеспечение подразделений МЧС России, осуществляющих профессиональную подготовку и повышение квалификации личного состава, принимающего участие в ликвидации дорожно-транспортных происшествий","Прочие нужды","МЧС России",null,1]
["6/8","Участие МЧС России в коммуникативных мероприятиях (конференциях, форумах, выставках и иных общественных  мероприятиях) в области безопасности дорожного движения и оказания помощи пострадавшим в дорожно-транспортных происшествиях","Прочие нужды","МЧС России",null,1]
["6/9","Развитие Центра мониторинга ликвидации последствий дорожно-транспортных происшествий МЧС России","Прочие нужды","МЧС России",null,1]
["6/1","Проведение научных исследований, направленных на совершенствование нормативной и методической базы в области ликвидации последствий дорожно-транспортных происшествий","НИОКР","МЧС России",null,1]
["6/2","Разработка научно-обоснованных предложений по совершенствованию информационно-аналитического обеспечения функционирования системы ликвидации последствий дорожно-транспортных происшествий","НИОКР","МЧС России",null,1]
["Мероприятия, направленные на совершенствование нормативно-правового, организационного и методического обеспечения деятельности в сфере обеспечения безопасности дорожного движения\n(приложение № 7 к федеральной целевой программе \"Повышение безопасности дорожного движения в 2013 - 2020 годах\")"]
["7/6","Текущее управление Программой (содержание федерального казенного учреждения «Дирекция по управлению федеральной целевой программой «Повышение безопасности дорожного движения в 2006 - 2012 годах» )","Прочие нужды","МВД России",null,1]
["7/7","Проведение специализированных семинаров, посвященных обмену опытом в деятельности по обеспечению безопасности дорожного движения и внедрению на региональном и муниципальном уровнях результатов научно-исследовательских и опытно- конструкторских работ, выполненных в рамках реализации Программы","Прочие нужды","МВД России",null,1]
["7/8","Создание аналитических систем управления безопасностью дорожного движения МВД России","Прочие нужды","МВД России",null,1]
["7/9","Подготовка и периодическое повышение квалификации работников управлений госавтодорнадзора Ространснадзора по осуществлению контрольно-надзорных функций по соблюдению владельцами транспортных средств установленных требований по параметрам перевозок (режим труда и отдыха водителей, скоростной режим движения и т.п.) с применением цифровых тахографов","Прочие нужды","Минтранс России",null,1]
["7/1","Разработка механизма по установлению индивидуальных целевых заданий для субъектов Российской Федерации по снижению уровня дорожно-транспортной аварийности на период до 2020 года и закреплению субсидиарной ответственности федерального центра и субъектов Российской Федерации за достижение целей деятельности по обеспечению безопасности дорожного движения","НИОКР","МВД России",null,1]
["7/2","Изучение существующих положений и построение научно-обоснованных моделей разграничения полномочий (сфер ответственности) органов исполнительной власти различного уровня, органов местного самоуправления","НИОКР","МВД России",null,1]
["7/3","Проведение комплексных научных исследований, направленных на создание аналитических методов поддержки принятия решений и управления в сфере безопасности дорожного движения с учетом федерального, регионального и местного аспектов, а также разработке механизмов комплексной оценки и анализа эффективности и результативности текущей и программной деятельности","НИОКР","МВД России",null,1]
["7/4","Разработка действенных механизмов по привлечению внебюджетных финансовых средств в приоритетные проекты обеспечения безопасности дорожного движения, развитию государственно-частного партнерства, созданию эффективных саморегулируемых организаций, а также методов аутсорсинга в сфере обеспечения безопасности дорожного движения","НИОКР","МВД России",null,1]
["7/5","Проведение научных исследований в области применения программных продуктов математического моделирования транспортных потоков при разработке комплексных схем организации дорожного движения, проектов организации дорожного движения, а также проектов автоматизированных систем управления дорожным движением. Разработка предложений по нормативному и методическому обеспечению использования программных продуктов при проектировании в сфере организации дорожного движения","НИОКР","Минтранс России",null,1]
[]
[]
[" - "]

{"sheet":"Рабочий_лист_не_менять!!!","index":4,"n_rows":58,"n_cols":36,"rows_kept":58,"cut":false,"hidden":true,"merged":[[0,8,3,8],[2,10,2,11],[1,19,1,28],[2,22,2,23],[2,12,2,13],[2,26,3,26],[2,24,2,25],[2,16,3,16],[2,17,2,18],[2,14,2,15],[2,20,2,21],[2,19,3,19],[1,9,1,18],[2,9,3,9],[0,0,3,0],[0,7,3,7],[0,4,3,4],[0,5,3,5],[0,2,3,2],[0,3,3,3],[0,1,3,1],[0,6,3,6],[0,35,3,35],[2,27,2,28],[0,34,3,34],[0,32,3,32],[0,33,3,33],[0,31,3,31],[0,30,3,30],[0,29,3,29],[0,9,0,28]]}
["Год","Кв.","Субъект РФ","Имя файла","Дата отчета",{"$f":"#REF!","v":{"$error":"#REF!"}},{"$f":"#REF!","v":{"$error":"#REF!"}},{"$f":"#REF!","v":{"$error":"#REF!"}},{"$f":"#REF!","v":{"$error":"#REF!"}},"Источники финансирования мероприятий Программы на отчетный год",null,null,null,null,null,null,null,null,null,null,null,null,null,null,null,null,null,null,null,"Результаты реализации (выполненные работы) за отчетный период\n","Номер по Конституции","Федеральный округ","Код ОКАТО","Госзаказчик","Вид расходов","Постановление 100 предусматривает софинансирование из РБ,  МБ и ВБИ"]
[null,null,null,null,null,null,null,null,null,"Бюджет субъекта РФ и местные бюджеты",null,null,null,null,null,null,null,null,null,"Внебюджетные источники"]
[null,null,null,null,null,null,null,null,null,{"$f":"#REF!","v":{"$error":"#REF!"}},{"$f":"#REF!","v":{"$error":"#REF!"}},null,"Количество контрактов, договоров, действующих в 2011 г.",null,{"$f":"#REF!","v":{"$error":"#REF!"}},null,{"$f":"#REF!","v":{"$error":"#REF!"}},{"$f":"#REF!","v":{"$error":"#REF!"}},null,{"$f":"#REF!","v":{"$error":"#REF!"}},{"$f":"#REF!","v":{"$error":"#REF!"}},null,"Количество контрактов, договоров, действующих в 2011 г.","Конт-ракты за 2011 год",{"$f":"#REF!","v":{"$error":"#REF!"}},"Контракты за 2011 год",{"$f":"#REF!","v":{"$error":"#REF!"}},{"$f":"#REF!","v":{"$error":"#REF!"}},"Контракты за 2011 год"]
[null,null,null,null,null,null,null,null,null,null,{"$f":"#REF!","v":{"$error":"#REF!"}},{"$f":"#REF!","v":{"$error":"#REF!"}},"ВСЕГО, включая конт-ракты прош-лых лет",{"$f":"#REF!","v":{"$error":"#REF!"}},{"$f":"#REF!","v":{"$error":"#REF!"}},{"$f":"#REF!","v":{"$error":"#REF!"}},null,{"$f":"#REF!","v":{"$error":"#REF!"}},{"$f":"#REF!","v":{"$error":"#REF!"}},null,{"$f":"#REF!","v":{"$error":"#REF!"}},{"$f":"#REF!","v":{"$error":"#REF!"}},{"$f":"#REF!","v":{"$error":"#REF!"}},{"$f":"#REF!","v":{"$error":"#REF!"}},{"$f":"#REF!","v":{"$error":"#REF!"}},{"$f":"#REF!","v":{"$error":"#REF!"}}]
[null,null,null,null,null,1,2,3,null,4,5,6,7,8,9,10,11,12,13,14,15,16,17,18,19,20,21,22,23,24]
[{"$f":"#REF!","v":{"$error":"#REF!"}},{"$f":"#REF!","v":{"$error":"#REF!"}},{"$f":"#REF!","v":{"$error":"#REF!"}},{"$f":"MID(CELL(\"имяфайла\"),SEARCH(\"[\",CELL(\"имяфайла\"))+1,SEARCH(\"]\",CELL(\"имяфайла\"))-SEARCH(\"[\",CELL(\"имяфайла\"))-1)","v":"БД_Отчеты_СРФ_4_кв_2013.xlsm"},{"$f":"LEFT(RIGHT(D6,14),10)","v":"4_кв_2013."},{"$f":"#REF!","v":{"$error":"#REF!"}},{"$f":"#REF!","v":{"$error":"#REF!"}},{"$f":"#REF!","v":{"$error":"#REF!"}},{"$f":"#REF!","v":{"$error":"#REF!"}},{"$f":"#REF!","v":{"$error":"#REF!"}},{"$f":"#REF!","v":{"$error":"#REF!"}},{"$f":"#REF!","v":{"$error":"#REF!"}},{"$f":"#REF!","v":{"$error":"#REF!"}},{"$f":"#REF!","v":{"$error":"#REF!"}},{"$f":"#REF!","v":{"$error":"#REF!"}},{"$f":"#REF!","v":{"$error":"#REF!"}},{"$f":"#REF!","v":{"$error":"#REF!"}},{"$f":"#REF!","v":{"$error":"#REF!"}},{"$f":"#REF!","v":{"$error":"#REF!"}},{"$f":"#REF!","v":{"$error":"#REF!"}},{"$f":"#REF!","v":{"$error":"#REF!"}},{"$f":"#REF!","v":{"$error":"#REF!"}},{"$f":"#REF!","v":{"$error":"#REF!"}},{"$f":"#REF!","v":{"$error":"#REF!"}},{"$f":"#REF!","v":{"$error":"#REF!"}},{"$f":"#REF!","v":{"$error":"#REF!"}},{"$f":"#REF!","v":{"$error":"#REF!"}},{"$f":"#REF!","v":{"$error":"#REF!"}},{"$f":"#REF!","v":{"$error":"#REF!"}},{"$f":"#REF!","v":{"$error":"#REF!"}},{"$f":"INDEX(Номер_по_Конституции,MATCH(C6,Субъекты_РФ,0),1)","v":{"$error":"#REF!"}},{"$f":"INDEX(Федеральный_округ,MATCH(C6,Субъекты_РФ,0),1)","v":{"$error":"#REF!"}},{"$f":"INDEX(Код_ОКАТО,MATCH(C6,Субъекты_РФ,0),1)","v":{"$error":"#REF!"}},{"$f":"IF(G6=0,\"Не указано\",INDEX(Госзаказчик,MATCH(G6,Код_мероприятия,0),1))","v":{"$error":"#REF!"}},{"$f":"IF(G6=0,\"Не указано\",INDEX(Вид_расходов,MATCH(G6,Код_мероприятия,0),1))","v":{"$error":"#REF!"}},{"$f":"IF(G6=0,\"Не указано\",INDEX(РБ_МБ_ВБИ,MATCH(G6,Код_мероприятия,0),1))","v":{"$error":"#REF!"}}]
[{"$f":"#REF!","v":{"$error":"#REF!"}},{"$f":"#REF!","v":{"$error":"#REF!"}},{"$f":"#REF!","v":{"$error":"#REF!"}},{"$f":"MID(CELL(\"имяфайла\"),SEARCH(\"[\",CELL(\"имяфайла\"))+1,SEARCH(\"]\",CELL(\"имяфайла\"))-SEARCH(\"[\",CELL(\"имяфайла\"))-1)","v":"БД_Отчеты_СРФ_4_кв_2013.xlsm"},{"$f":"LEFT(RIGHT(D7,14),10)","v":"4_кв_2013."},{"$f":"#REF!","v":{"$error":"#REF!"}},{"$f":"#REF!","v":{"$error":"#REF!"}},{"$f":"#REF!","v":{"$error":"#REF!"}},{"$f":"#REF!","v":{"$error":"#REF!"}},{"$f":"#REF!","v":{"$error":"#REF!"}},{"$f":"#REF!","v":{"$error":"#REF!"}},{"$f":"#REF!","v":{"$error":"#REF!"}},{"$f":"#REF!","v":{"$error":"#REF!"}},{"$f":"#REF!","v":{"$error":"#REF!"}},{"$f":"#REF!","v":{"$error":"#REF!"}},{"$f":"#REF!","v":{"$error":"#REF!"}},{"$f":"#REF!","v":{"$error":"#REF!"}},{"$f":"#REF!","v":{"$error":"#REF!"}},{"$f":"#REF!","v":{"$error":"#REF!"}},{"$f":"#REF!","v":{"$error":"#REF!"}},{"$f":"#REF!","v":{"$error":"#REF!"}},{"$f":"#REF!","v":{"$error":"#REF!"}},{"$f":"#REF!","v":{"$error":"#REF!"}},{"$f":"#REF!","v":{"$error":"#REF!"}},{"$f":"#REF!","v":{"$error":"#REF!"}},{"$f":"#REF!","v":{"$error":"#REF!"}},{"$f":"#REF!","v":{"$error":"#REF!"}},{"$f":"#REF!","v":{"$error":"#REF!"}},{"$f":"#REF!","v":{"$error":"#REF!"}},{"$f":"#REF!","v":{"$error":"#REF!"}},{"$error":"#REF!"},{"$error":"#REF!"},{"$error":"#REF!"},{"$error":"#REF!"},{"$error":"#REF!"},{"$error":"#REF!"}]
[{"$f":"#REF!","v":{"$error":"#REF!"}},{"$f":"#REF!","v":{"$error":"#REF!"}},{"$f":"#REF!","v":{"$error":"#REF!"}},"БД_Отчеты_СРФ_4_кв_2013.xlsm","4_кв_2013.",{"$f":"#REF!","v":{"$error":"#REF!"}},{"$f":"#REF!","v":{"$error":"#REF!"}},{"$f":"#REF!","v":{"$error":"#REF!"}},{"$f":"#REF!","v":{"$error":"#REF!"}},{"$f":"#REF!","v":{"$error":"#REF!"}},{"$f":"#REF!","v":{"$error":"#REF!"}},{"$f":"#REF!","v":{"$error":"#REF!"}},{"$f":"#REF!","v":{"$error":"#REF!"}},{"$f":"#REF!","v":{"$error":"#REF!"}},{"$f":"#REF!","v":{"$error":"#REF!"}},{"$f":"#REF!","v":{"$error":"#REF!"}},{"$f":"#REF!","v":{"$error":"#REF!"}},{"$f":"#REF!","v":{"$error":"#REF!"}},{"$f":"#REF!","v":{"$error":"#REF!"}},{"$f":"#REF!","v":{"$error":"#REF!"}},{"$f":"#REF!","v":{"$error":"#REF!"}},{"$f":"#REF!","v":{"$error":"#REF!"}},{"$f":"#REF!","v":{"$error":"#REF!"}},{"$f":"#REF!","v":{"$error":"#REF!"}},{"$f":"#REF!","v":{"$error":"#REF!"}},{"$f":"#REF!","v":{"$error":"#REF!"}},{"$f":"#REF!","v":{"$error":"#REF!"}},{"$f":"#REF!","v":{"$error":"#REF!"}},{"$f":"#REF!","v":{"$error":"#REF!"}},{"$f":"#REF!","v":{"$error":"#REF!"}},{"$error":"#REF!"},{"$error":"#REF!"},{"$error":"#REF!"},{"$error":"#REF!"},{"$error":"#REF!"},{"$error":"#REF!"}]
[{"$f":"#REF!","v":{"$error":"#REF!"}},{"$f":"#REF!","v":{"$error":"#REF!"}},{"$f":"#REF!","v":{"$error":"#REF!"}},"БД_Отчеты_СРФ_4_кв_2013.xlsm","4_кв_2013.",{"$f":"#REF!","v":{"$error":"#REF!"}},{"$f":"#REF!","v":{"$error":"#REF!"}},{"$f":"#REF!","v":{"$error":"#REF!"}},{"$f":"#REF!","v":{"$error":"#REF!"}},{"$f":"#REF!","v":{"$error":"#REF!"}},{"$f":"#REF!","v":{"$error":"#REF!"}},{"$f":"#REF!","v":{"$error":"#REF!"}},{"$f":"#REF!","v":{"$error":"#REF!"}},{"$f":"#REF!","v":{"$error":"#REF!"}},{"$f":"#REF!","v":{"$error":"#REF!"}},{"$f":"#REF!","v":{"$error":"#REF!"}},{"$f":"#REF!","v":{"$error":"#REF!"}},{"$f":"#REF!","v":{"$error":"#REF!"}},{"$f":"#REF!","v":{"$error":"#REF!"}},{"$f":"#REF!","v":{"$error":"#REF!"}},{"$f":"#REF!","v":{"$error":"#REF!"}},{"$f":"#REF!","v":{"$error":"#REF!"}},{"$f":"#REF!","v":{"$error":"#REF!"}},{"$f":"#REF!","v":{"$error":"#REF!"}},{"$f":"#REF!","v":{"$error":"#REF!"}},{"$f":"#REF!","v":{"$error":"#REF!"}},{"$f":"#REF!","v":{"$error":"#REF!"}},{"$f":"#REF!","v":{"$error":"#REF!"}},{"$f":"#REF!","v":{"$error":"#REF!"}},{"$f":"#REF!","v":{"$error":"#REF!"}},{"$error":"#REF!"},{"$error":"#REF!"},{"$error":"#REF!"},{"$error":"#REF!"},{"$error":"#REF!"},{"$error":"#REF!"}]
[{"$f":"#REF!","v":{"$error":"#REF!"}},{"$f":"#REF!","v":{"$error":"#REF!"}},{"$f":"#REF!","v":{"$error":"#REF!"}},"БД_Отчеты_СРФ_4_кв_2013.xlsm","4_кв_2013.",{"$f":"#REF!","v":{"$error":"#REF!"}},{"$f":"#REF!","v":{"$error":"#REF!"}},{"$f":"#REF!","v":{"$error":"#REF!"}},{"$f":"#REF!","v":{"$error":"#REF!"}},{"$f":"#REF!","v":{"$error":"#REF!"}},{"$f":"#REF!","v":{"$error":"#REF!"}},{"$f":"#REF!","v":{"$error":"#REF!"}},{"$f":"#REF!","v":{"$error":"#REF!"}},{"$f":"#REF!","v":{"$error":"#REF!"}},{"$f":"#REF!","v":{"$error":"#REF!"}},{"$f":"#REF!","v":{"$error":"#REF!"}},{"$f":"#REF!","v":{"$error":"#REF!"}},{"$f":"#REF!","v":{"$error":"#REF!"}},{"$f":"#REF!","v":{"$error":"#REF!"}},{"$f":"#REF!","v":{"$error":"#REF!"}},{"$f":"#REF!","v":{"$error":"#REF!"}},{"$f":"#REF!","v":{"$error":"#REF!"}},{"$f":"#REF!","v":{"$error":"#REF!"}},{"$f":"#REF!","v":{"$error":"#REF!"}},{"$f":"#REF!","v":{"$error":"#REF!"}},{"$f":"#REF!","v":{"$error":"#REF!"}},{"$f":"#REF!","v":{"$error":"#REF!"}},{"$f":"#REF!","v":{"$error":"#REF!"}},{"$f":"#REF!","v":{"$error":"#REF!"}},{"$f":"#REF!","v":{"$error":"#REF!"}},{"$error":"#REF!"},{"$error":"#REF!"},{"$error":"#REF!"},{"$error":"#REF!"},{"$error":"#REF!"},{"$error":"#REF!"}]
[{"$f":"#REF!","v":{"$error":"#REF!"}},{"$f":"#REF!","v":{"$error":"#REF!"}},{"$f":"#REF!","v":{"$error":"#REF!"}},"БД_Отчеты_СРФ_4_кв_2013.xlsm","4_кв_2013.",{"$f":"#REF!","v":{"$error":"#REF!"}},{"$f":"#REF!","v":{"$error":"#REF!"}},{"$f":"#REF!","v":{"$error":"#REF!"}},{"$f":"#REF!","v":{"$error":"#REF!"}},{"$f":"#REF!","v":{"$error":"#REF!"}},{"$f":"#REF!","v":{"$error":"#REF!"}},{"$f":"#REF!","v":{"$error":"#REF!"}},{"$f":"#REF!","v":{"$error":"#REF!"}},{"$f":"#REF!","v":{"$error":"#REF!"}},{"$f":"#REF!","v":{"$error":"#REF!"}},{"$f":"#REF!","v":{"$error":"#REF!"}},{"$f":"#REF!","v":{"$error":"#REF!"}},{"$f":"#REF!","v":{"$error":"#REF!"}},{"$f":"#REF!","v":{"$error":"#REF!"}},{"$f":"#REF!","v":{"$error":"#REF!"}},{"$f":"#REF!","v":{"$error":"#REF!"}},{"$f":"#REF!","v":{"$error":"#REF!"}},{"$f":"#REF!","v":{"$error":"#REF!"}},{"$f":"#REF!","v":{"$error":"#REF!"}},{"$f":"#REF!","v":{"$error":"#REF!"}},{"$f":"#REF!","v":{"$error":"#REF!"}},{"$f":"#REF!","v":{"$error":"#REF!"}},{"$f":"#REF!","v":{"$error":"#REF!"}},{"$f":"#REF!","v":{"$error":"#REF!"}},{"$f":"#REF!","v":{"$error":"#REF!"}},{"$error":"#REF!"},{"$error":"#REF!"},{"$error":"#REF!"},{"$error":"#REF!"},{"$error":"#REF!"},{"$error":"#REF!"}]
[{"$f":"#REF!","v":{"$error":"#REF!"}},{"$f":"#REF!","v":{"$error":"#REF!"}},{"$f":"#REF!","v":{"$error":"#REF!"}},"БД_Отчеты_СРФ_4_кв_2013.xlsm","4_кв_2013.",{"$f":"#REF!","v":{"$error":"#REF!"}},{"$f":"#REF!","v":{"$error":"#REF!"}},{"$f":"#REF!","v":{"$error":"#REF!"}},{"$f":"#REF!","v":{"$error":"#REF!"}},{"$f":"#REF!","v":{"$error":"#REF!"}},{"$f":"#REF!","v":{"$error":"#REF!"}},{"$f":"#REF!","v":{"$error":"#REF!"}},{"$f":"#REF!","v":{"$error":"#REF!"}},{"$f":"#REF!","v":{"$error":"#REF!"}},{"$f":"#REF!","v":{"$error":"#REF!"}},{"$f":"#REF!","v":{"$error":"#REF!"}},{"$f":"#REF!","v":{"$error":"#REF!"}},{"$f":"#REF!","v":{"$error":"#REF!"}},{"$f":"#REF!","v":{"$error":"#REF!"}},{"$f":"#REF!","v":{"$error":"#REF!"}},{"$f":"#REF!","v":{"$error":"#REF!"}},{"$f":"#REF!","v":{"$error":"#REF!"}},{"$f":"#REF!","v":{"$error":"#REF!"}},{"$f":"#REF!","v":{"$error":"#REF!"}},{"$f":"#REF!","v":{"$error":"#REF!"}},{"$f":"#REF!","v":{"$error":"#REF!"}},{"$f":"#REF!","v":{"$error":"#REF!"}},{"$f":"#REF!","v":{"$error":"#REF!"}},{"$f":"#REF!","v":{"$error":"#REF!"}},{"$f":"#REF!","v":{"$error":"#REF!"}},{"$error":"#REF!"},{"$error":"#REF!"},{"$error":"#REF!"},{"$error":"#REF!"},{"$error":"#REF!"},{"$error":"#REF!"}]
[{"$f":"#REF!","v":{"$error":"#REF!"}},{"$f":"#REF!","v":{"$error":"#REF!"}},{"$f":"#REF!","v":{"$error":"#REF!"}},"БД_Отчеты_СРФ_4_кв_2013.xlsm","4_кв_2013.",{"$f":"#REF!","v":{"$error":"#REF!"}},{"$f":"#REF!","v":{"$error":"#REF!"}},{"$f":"#REF!","v":{"$error":"#REF!"}},{"$f":"#REF!","v":{"$error":"#REF!"}},{"$f":"#REF!","v":{"$error":"#REF!"}},{"$f":"#REF!","v":{"$error":"#REF!"}},{"$f":"#REF!","v":{"$error":"#REF!"}},{"$f":"#REF!","v":{"$error":"#REF!"}},{"$f":"#REF!","v":{"$error":"#REF!"}},{"$f":"#REF!","v":{"$error":"#REF!"}},{"$f":"#REF!","v":{"$error":"#REF!"}},{"$f":"#REF!","v":{"$error":"#REF!"}},{"$f":"#REF!","v":{"$error":"#REF!"}},{"$f":"#REF!","v":{"$error":"#REF!"}},{"$f":"#REF!","v":{"$error":"#REF!"}},{"$f":"#REF!","v":{"$error":"#REF!"}},{"$f":"#REF!","v":{"$error":"#REF!"}},{"$f":"#REF!","v":{"$error":"#REF!"}},{"$f":"#REF!","v":{"$error":"#REF!"}},{"$f":"#REF!","v":{"$error":"#REF!"}},{"$f":"#REF!","v":{"$error":"#REF!"}},{"$f":"#REF!","v":{"$error":"#REF!"}},{"$f":"#REF!","v":{"$error":"#REF!"}},{"$f":"#REF!","v":{"$error":"#REF!"}},{"$f":"#REF!","v":{"$error":"#REF!"}},{"$error":"#REF!"},{"$error":"#REF!"},{"$error":"#REF!"},{"$error":"#REF!"},{"$error":"#REF!"},{"$error":"#REF!"}]
[{"$f":"#REF!","v":{"$error":"#REF!"}},{"$f":"#REF!","v":{"$error":"#REF!"}},{"$f":"#REF!","v":{"$error":"#REF!"}},"БД_Отчеты_СРФ_4_кв_2013.xlsm","4_кв_2013.",{"$f":"#REF!","v":{"$error":"#REF!"}},{"$f":"#REF!","v":{"$error":"#REF!"}},{"$f":"#REF!","v":{"$error":"#REF!"}},{"$f":"#REF!","v":{"$error":"#REF!"}},{"$f":"#REF!","v":{"$error":"#REF!"}},{"$f":"#REF!","v":{"$error":"#REF!"}},{"$f":"#REF!","v":{"$error":"#REF!"}},{"$f":"#REF!","v":{"$error":"#REF!"}},{"$f":"#REF!","v":{"$error":"#REF!"}},{"$f":"#REF!","v":{"$error":"#REF!"}},{"$f":"#REF!","v":{"$error":"#REF!"}},{"$f":"#REF!","v":{"$error":"#REF!"}},{"$f":"#REF!","v":{"$error":"#REF!"}},{"$f":"#REF!","v":{"$error":"#REF!"}},{"$f":"#REF!","v":{"$error":"#REF!"}},{"$f":"#REF!","v":{"$error":"#REF!"}},{"$f":"#REF!","v":{"$error":"#REF!"}},{"$f":"#REF!","v":{"$error":"#REF!"}},{"$f":"#REF!","v":{"$error":"#REF!"}},{"$f":"#REF!","v":{"$error":"#REF!"}},{"$f":"#REF!","v":{"$error":"#REF!"}},{"$f":"#REF!","v":{"$error":"#REF!"}},{"$f":"#REF!","v":{"$error":"#REF!"}},{"$f":"#REF!","v":{"$error":"#REF!"}},{"$f":"#REF!","v":{"$error":"#REF!"}},{"$error":"#REF!"},{"$error":"#REF!"},{"$error":"#REF!"},{"$error":"#REF!"},{"$error":"#REF!"},{"$error":"#REF!"}]
[{"$f":"#REF!","v":{"$error":"#REF!"}},{"$f":"#REF!","v":{"$error":"#REF!"}},{"$f":"#REF!","v":{"$error":"#REF!"}},"БД_Отчеты_СРФ_4_кв_2013.xlsm","4_кв_2013.",{"$f":"#REF!","v":{"$error":"#REF!"}},{"$f":"#REF!","v":{"$error":"#REF!"}},{"$f":"#REF!","v":{"$error":"#REF!"}},{"$f":"#REF!","v":{"$error":"#REF!"}},{"$f":"#REF!","v":{"$error":"#REF!"}},{"$f":"#REF!","v":{"$error":"#REF!"}},{"$f":"#REF!","v":{"$error":"#REF!"}},{"$f":"#REF!","v":{"$error":"#REF!"}},{"$f":"#REF!","v":{"$error":"#REF!"}},{"$f":"#REF!","v":{"$error":"#REF!"}},{"$f":"#REF!","v":{"$error":"#REF!"}},{"$f":"#REF!","v":{"$error":"#REF!"}},{"$f":"#REF!","v":{"$error":"#REF!"}},{"$f":"#REF!","v":{"$error":"#REF!"}},{"$f":"#REF!","v":{"$error":"#REF!"}},{"$f":"#REF!","v":{"$error":"#REF!"}},{"$f":"#REF!","v":{"$error":"#REF!"}},{"$f":"#REF!","v":{"$error":"#REF!"}},{"$f":"#REF!","v":{"$error":"#REF!"}},{"$f":"#REF!","v":{"$error":"#REF!"}},{"$f":"#REF!","v":{"$error":"#REF!"}},{"$f":"#REF!","v":{"$error":"#REF!"}},{"$f":"#REF!","v":{"$error":"#REF!"}},{"$f":"#REF!","v":{"$error":"#REF!"}},{"$f":"#REF!","v":{"$error":"#REF!"}},{"$error":"#REF!"},{"$error":"#REF!"},{"$error":"#REF!"},{"$error":"#REF!"},{"$error":"#REF!"},{"$error":"#REF!"}]
[{"$f":"#REF!","v":{"$error":"#REF!"}},{"$f":"#REF!","v":{"$error":"#REF!"}},{"$f":"#REF!","v":{"$error":"#REF!"}},"БД_Отчеты_СРФ_4_кв_2013.xlsm","4_кв_2013.",{"$f":"#REF!","v":{"$error":"#REF!"}},{"$f":"#REF!","v":{"$error":"#REF!"}},{"$f":"#REF!","v":{"$error":"#REF!"}},{"$f":"#REF!","v":{"$error":"#REF!"}},{"$f":"#REF!","v":{"$error":"#REF!"}},{"$f":"#REF!","v":{"$error":"#REF!"}},{"$f":"#REF!","v":{"$error":"#REF!"}},{"$f":"#REF!","v":{"$error":"#REF!"}},{"$f":"#REF!","v":{"$error":"#REF!"}},{"$f":"#REF!","v":{"$error":"#REF!"}},{"$f":"#REF!","v":{"$error":"#REF!"}},{"$f":"#REF!","v":{"$error":"#REF!"}},{"$f":"#REF!","v":{"$error":"#REF!"}},{"$f":"#REF!","v":{"$error":"#REF!"}},{"$f":"#REF!","v":{"$error":"#REF!"}},{"$f":"#REF!","v":{"$error":"#REF!"}},{"$f":"#REF!","v":{"$error":"#REF!"}},{"$f":"#REF!","v":{"$error":"#REF!"}},{"$f":"#REF!","v":{"$error":"#REF!"}},{"$f":"#REF!","v":{"$error":"#REF!"}},{"$f":"#REF!","v":{"$error":"#REF!"}},{"$f":"#REF!","v":{"$error":"#REF!"}},{"$f":"#REF!","v":{"$error":"#REF!"}},{"$f":"#REF!","v":{"$error":"#REF!"}},{"$f":"#REF!","v":{"$error":"#REF!"}},{"$error":"#REF!"},{"$error":"#REF!"},{"$error":"#REF!"},{"$error":"#REF!"},{"$error":"#REF!"},{"$error":"#REF!"}]
[{"$f":"#REF!","v":{"$error":"#REF!"}},{"$f":"#REF!","v":{"$error":"#REF!"}},{"$f":"#REF!","v":{"$error":"#REF!"}},"БД_Отчеты_СРФ_4_кв_2013.xlsm","4_кв_2013.",{"$f":"#REF!","v":{"$error":"#REF!"}},{"$f":"#REF!","v":{"$error":"#REF!"}},{"$f":"#REF!","v":{"$error":"#REF!"}},{"$f":"#REF!","v":{"$error":"#REF!"}},{"$f":"#REF!","v":{"$error":"#REF!"}},{"$f":"#REF!","v":{"$error":"#REF!"}},{"$f":"#REF!","v":{"$error":"#REF!"}},{"$f":"#REF!","v":{"$error":"#REF!"}},{"$f":"#REF!","v":{"$error":"#REF!"}},{"$f":"#REF!","v":{"$error":"#REF!"}},{"$f":"#REF!","v":{"$error":"#REF!"}},{"$f":"#REF!","v":{"$error":"#REF!"}},{"$f":"#REF!","v":{"$error":"#REF!"}},{"$f":"#REF!","v":{"$error":"#REF!"}},{"$f":"#REF!","v":{"$error":"#REF!"}},{"$f":"#REF!","v":{"$error":"#REF!"}},{"$f":"#REF!","v":{"$error":"#REF!"}},{"$f":"#REF!","v":{"$error":"#REF!"}},{"$f":"#REF!","v":{"$error":"#REF!"}},{"$f":"#REF!","v":{"$error":"#REF!"}},{"$f":"#REF!","v":{"$error":"#REF!"}},{"$f":"#REF!","v":{"$error":"#REF!"}},{"$f":"#REF!","v":{"$error":"#REF!"}},{"$f":"#REF!","v":{"$error":"#REF!"}},{"$f":"#REF!","v":{"$error":"#REF!"}},{"$error":"#REF!"},{"$error":"#REF!"},{"$error":"#REF!"},{"$error":"#REF!"},{"$error":"#REF!"},{"$error":"#REF!"}]
[{"$f":"#REF!","v":{"$error":"#REF!"}},{"$f":"#REF!","v":{"$error":"#REF!"}},{"$f":"#REF!","v":{"$error":"#REF!"}},"БД_Отчеты_СРФ_4_кв_2013.xlsm","4_кв_2013.",{"$f":"#REF!","v":{"$error":"#REF!"}},{"$f":"#REF!","v":{"$error":"#REF!"}},{"$f":"#REF!","v":{"$error":"#REF!"}},{"$f":"#REF!","v":{"$error":"#REF!"}},{"$f":"#REF!","v":{"$error":"#REF!"}},{"$f":"#REF!","v":{"$error":"#REF!"}},{"$f":"#REF!","v":{"$error":"#REF!"}},{"$f":"#REF!","v":{"$error":"#REF!"}},{"$f":"#REF!","v":{"$error":"#REF!"}},{"$f":"#REF!","v":{"$error":"#REF!"}},{"$f":"#REF!","v":{"$error":"#REF!"}},{"$f":"#REF!","v":{"$error":"#REF!"}},{"$f":"#REF!","v":{"$error":"#REF!"}},{"$f":"#REF!","v":{"$error":"#REF!"}},{"$f":"#REF!","v":{"$error":"#REF!"}},{"$f":"#REF!","v":{"$error":"#REF!"}},{"$f":"#REF!","v":{"$error":"#REF!"}},{"$f":"#REF!","v":{"$error":"#REF!"}},{"$f":"#REF!","v":{"$error":"#REF!"}},{"$f":"#REF!","v":{"$error":"#REF!"}},{"$f":"#REF!","v":{"$error":"#REF!"}},{"$f":"#REF!","v":{"$error":"#REF!"}},{"$f":"#REF!","v":{"$error":"#REF!"}},{"$f":"#REF!","v":{"$error":"#REF!"}},{"$f":"#REF!","v":{"$error":"#REF!"}},{"$error":"#REF!"},{"$error":"#REF!"},{"$error":"#REF!"},{"$error":"#REF!"},{"$error":"#REF!"},{"$error":"#REF!"}]
[{"$f":"#REF!","v":{"$error":"#REF!"}},{"$f":"#REF!","v":{"$error":"#REF!"}},{"$f":"#REF!","v":{"$error":"#REF!"}},"БД_Отчеты_СРФ_4_кв_2013.xlsm","4_кв_2013.",{"$f":"#REF!","v":{"$error":"#REF!"}},{"$f":"#REF!","v":{"$error":"#REF!"}},{"$f":"#REF!","v":{"$error":"#REF!"}},{"$f":"#REF!","v":{"$error":"#REF!"}},{"$f":"#REF!","v":{"$error":"#REF!"}},{"$f":"#REF!","v":{"$error":"#REF!"}},{"$f":"#REF!","v":{"$error":"#REF!"}},{"$f":"#REF!","v":{"$error":"#REF!"}},{"$f":"#REF!","v":{"$error":"#REF!"}},{"$f":"#REF!","v":{"$error":"#REF!"}},{"$f":"#REF!","v":{"$error":"#REF!"}},{"$f":"#REF!","v":{"$error":"#REF!"}},{"$f":"#REF!","v":{"$error":"#REF!"}},{"$f":"#REF!","v":{"$error":"#REF!"}},{"$f":"#REF!","v":{"$error":"#REF!"}},{"$f":"#REF!","v":{"$error":"#REF!"}},{"$f":"#REF!","v":{"$error":"#REF!"}},{"$f":"#REF!","v":{"$error":"#REF!"}},{"$f":"#REF!","v":{"$error":"#REF!"}},{"$f":"#REF!","v":{"$error":"#REF!"}},{"$f":"#REF!","v":{"$error":"#REF!"}},{"$f":"#REF!","v":{"$error":"#REF!"}},{"$f":"#REF!","v":{"$error":"#REF!"}},{"$f":"#REF!","v":{"$error":"#REF!"}},{"$f":"#REF!","v":{"$error":"#REF!"}},{"$error":"#REF!"},{"$error":"#REF!"},{"$error":"#REF!"},{"$error":"#REF!"},{"$error":"#REF!"},{"$error":"#REF!"}]
[{"$f":"#REF!","v":{"$error":"#REF!"}},{"$f":"#REF!","v":{"$error":"#REF!"}},{"$f":"#REF!","v":{"$error":"#REF!"}},"БД_Отчеты_СРФ_4_кв_2013.xlsm","4_кв_2013.",{"$f":"#REF!","v":{"$error":"#REF!"}},{"$f":"#REF!","v":{"$error":"#REF!"}},{"$f":"#REF!","v":{"$error":"#REF!"}},{"$f":"#REF!","v":{"$error":"#REF!"}},{"$f":"#REF!","v":{"$error":"#REF!"}},{"$f":"#REF!","v":{"$error":"#REF!"}},{"$f":"#REF!","v":{"$error":"#REF!"}},{"$f":"#REF!","v":{"$error":"#REF!"}},{"$f":"#REF!","v":{"$error":"#REF!"}},{"$f":"#REF!","v":{"$error":"#REF!"}},{"$f":"#REF!","v":{"$error":"#REF!"}},{"$f":"#REF!","v":{"$error":"#REF!"}},{"$f":"#REF!","v":{"$error":"#REF!"}},{"$f":"#REF!","v":{"$error":"#REF!"}},{"$f":"#REF!","v":{"$error":"#REF!"}},{"$f":"#REF!","v":{"$error":"#REF!"}},{"$f":"#REF!","v":{"$error":"#REF!"}},{"$f":"#REF!","v":{"$error":"#REF!"}},{"$f":"#REF!","v":{"$error":"#REF!"}},{"$f":"#REF!","v":{"$error":"#REF!"}},{"$f":"#REF!","v":{"$error":"#REF!"}},{"$f":"#REF!","v":{"$error":"#REF!"}},{"$f":"#REF!","v":{"$error":"#REF!"}},{"$f":"#REF!","v":{"$error":"#REF!"}},{"$f":"#REF!","v":{"$error":"#REF!"}},{"$error":"#REF!"},{"$error":"#REF!"},{"$error":"#REF!"},{"$error":"#REF!"},{"$error":"#REF!"},{"$error":"#REF!"}]
[{"$f":"#REF!","v":{"$error":"#REF!"}},{"$f":"#REF!","v":{"$error":"#REF!"}},{"$f":"#REF!","v":{"$error":"#REF!"}},"БД_Отчеты_СРФ_4_кв_2013.xlsm","4_кв_2013.",{"$f":"#REF!","v":{"$error":"#REF!"}},{"$f":"#REF!","v":{"$error":"#REF!"}},{"$f":"#REF!","v":{"$error":"#REF!"}},{"$f":"#REF!","v":{"$error":"#REF!"}},{"$f":"#REF!","v":{"$error":"#REF!"}},{"$f":"#REF!","v":{"$error":"#REF!"}},{"$f":"#REF!","v":{"$error":"#REF!"}},{"$f":"#REF!","v":{"$error":"#REF!"}},{"$f":"#REF!","v":{"$error":"#REF!"}},{"$f":"#REF!","v":{"$error":"#REF!"}},{"$f":"#REF!","v":{"$error":"#REF!"}},{"$f":"#REF!","v":{"$error":"#REF!"}},{"$f":"#REF!","v":{"$error":"#REF!"}},{"$f":"#REF!","v":{"$error":"#REF!"}},{"$f":"#REF!","v":{"$error":"#REF!"}},{"$f":"#REF!","v":{"$error":"#REF!"}},{"$f":"#REF!","v":{"$error":"#REF!"}},{"$f":"#REF!","v":{"$error":"#REF!"}},{"$f":"#REF!","v":{"$error":"#REF!"}},{"$f":"#REF!","v":{"$error":"#REF!"}},{"$f":"#REF!","v":{"$error":"#REF!"}},{"$f":"#REF!","v":{"$error":"#REF!"}},{"$f":"#REF!","v":{"$error":"#REF!"}},{"$f":"#REF!","v":{"$error":"#REF!"}},{"$f":"#REF!","v":{"$error":"#REF!"}},{"$error":"#REF!"},{"$error":"#REF!"},{"$error":"#REF!"},{"$error":"#REF!"},{"$error":"#REF!"},{"$error":"#REF!"}]
[{"$f":"#REF!","v":{"$error":"#REF!"}},{"$f":"#REF!","v":{"$error":"#REF!"}},{"$f":"#REF!","v":{"$error":"#REF!"}},"БД_Отчеты_СРФ_4_кв_2013.xlsm","4_кв_2013.",{"$f":"#REF!","v":{"$error":"#REF!"}},{"$f":"#REF!","v":{"$error":"#REF!"}},{"$f":"#REF!","v":{"$error":"#REF!"}},{"$f":"#REF!","v":{"$error":"#REF!"}},{"$f":"#REF!","v":{"$error":"#REF!"}},{"$f":"#REF!","v":{"$error":"#REF!"}},{"$f":"#REF!","v":{"$error":"#REF!"}},{"$f":"#REF!","v":{"$error":"#REF!"}},{"$f":"#REF!","v":{"$error":"#REF!"}},{"$f":"#REF!","v":{"$error":"#REF!"}},{"$f":"#REF!","v":{"$error":"#REF!"}},{"$f":"#REF!","v":{"$error":"#REF!"}},{"$f":"#REF!","v":{"$error":"#REF!"}},{"$f":"#REF!","v":{"$error":"#REF!"}},{"$f":"#REF!","v":{"$error":"#REF!"}},{"$f":"#REF!","v":{"$error":"#REF!"}},{"$f":"#REF!","v":{"$error":"#REF!"}},{"$f":"#REF!","v":{"$error":"#REF!"}},{"$f":"#REF!","v":{"$error":"#REF!"}},{"$f":"#REF!","v":{"$error":"#REF!"}},{"$f":"#REF!","v":{"$error":"#REF!"}},{"$f":"#REF!","v":{"$error":"#REF!"}},{"$f":"#REF!","v":{"$error":"#REF!"}},{"$f":"#REF!","v":{"$error":"#REF!"}},{"$f":"#REF!","v":{"$error":"#REF!"}},{"$error":"#REF!"},{"$error":"#REF!"},{"$error":"#REF!"},{"$error":"#REF!"},{"$error":"#REF!"},{"$error":"#REF!"}]
[{"$f":"#REF!","v":{"$error":"#REF!"}},{"$f":"#REF!","v":{"$error":"#REF!"}},{"$f":"#REF!","v":{"$error":"#REF!"}},"БД_Отчеты_СРФ_4_кв_2013.xlsm","4_кв_2013.",{"$f":"#REF!","v":{"$error":"#REF!"}},{"$f":"#REF!","v":{"$error":"#REF!"}},{"$f":"#REF!","v":{"$error":"#REF!"}},{"$f":"#REF!","v":{"$error":"#REF!"}},{"$f":"#REF!","v":{"$error":"#REF!"}},{"$f":"#REF!","v":{"$error":"#REF!"}},{"$f":"#REF!","v":{"$error":"#REF!"}},{"$f":"#REF!","v":{"$error":"#REF!"}},{"$f":"#REF!","v":{"$error":"#REF!"}},{"$f":"#REF!","v":{"$error":"#REF!"}},{"$f":"#REF!","v":{"$error":"#REF!"}},{"$f":"#REF!","v":{"$error":"#REF!"}},{"$f":"#REF!","v":{"$error":"#REF!"}},{"$f":"#REF!","v":{"$error":"#REF!"}},{"$f":"#REF!","v":{"$error":"#REF!"}},{"$f":"#REF!","v":{"$error":"#REF!"}},{"$f":"#REF!","v":{"$error":"#REF!"}},{"$f":"#REF!","v":{"$error":"#REF!"}},{"$f":"#REF!","v":{"$error":"#REF!"}},{"$f":"#REF!","v":{"$error":"#REF!"}},{"$f":"#REF!","v":{"$error":"#REF!"}},{"$f":"#REF!","v":{"$error":"#REF!"}},{"$f":"#REF!","v":{"$error":"#REF!"}},{"$f":"#REF!","v":{"$error":"#REF!"}},{"$f":"#REF!","v":{"$error":"#REF!"}},{"$error":"#REF!"},{"$error":"#REF!"},{"$error":"#REF!"},{"$error":"#REF!"},{"$error":"#REF!"},{"$error":"#REF!"}]
[{"$f":"#REF!","v":{"$error":"#REF!"}},{"$f":"#REF!","v":{"$error":"#REF!"}},{"$f":"#REF!","v":{"$error":"#REF!"}},"БД_Отчеты_СРФ_4_кв_2013.xlsm","4_кв_2013.",{"$f":"#REF!","v":{"$error":"#REF!"}},{"$f":"#REF!","v":{"$error":"#REF!"}},{"$f":"#REF!","v":{"$error":"#REF!"}},{"$f":"#REF!","v":{"$error":"#REF!"}},{"$f":"#REF!","v":{"$error":"#REF!"}},{"$f":"#REF!","v":{"$error":"#REF!"}},{"$f":"#REF!","v":{"$error":"#REF!"}},{"$f":"#REF!","v":{"$error":"#REF!"}},{"$f":"#REF!","v":{"$error":"#REF!"}},{"$f":"#REF!","v":{"$error":"#REF!"}},{"$f":"#REF!","v":{"$error":"#REF!"}},{"$f":"#REF!","v":{"$error":"#REF!"}},{"$f":"#REF!","v":{"$error":"#REF!"}},{"$f":"#REF!","v":{"$error":"#REF!"}},{"$f":"#REF!","v":{"$error":"#REF!"}},{"$f":"#REF!","v":{"$error":"#REF!"}},{"$f":"#REF!","v":{"$error":"#REF!"}},{"$f":"#REF!","v":{"$error":"#REF!"}},{"$f":"#REF!","v":{"$error":"#REF!"}},{"$f":"#REF!","v":{"$error":"#REF!"}},{"$f":"#REF!","v":{"$error":"#REF!"}},{"$f":"#REF!","v":{"$error":"#REF!"}},{"$f":"#REF!","v":{"$error":"#REF!"}},{"$f":"#REF!","v":{"$error":"#REF!"}},{"$f":"#REF!","v":{"$error":"#REF!"}},{"$error":"#REF!"},{"$error":"#REF!"},{"$error":"#REF!"},{"$error":"#REF!"},{"$error":"#REF!"},{"$error":"#REF!"}]
[{"$f":"#REF!","v":{"$error":"#REF!"}},{"$f":"#REF!","v":{"$error":"#REF!"}},{"$f":"#REF!","v":{"$error":"#REF!"}},"БД_Отчеты_СРФ_4_кв_2013.xlsm","4_кв_2013.",{"$f":"#REF!","v":{"$error":"#REF!"}},{"$f":"#REF!","v":{"$error":"#REF!"}},{"$f":"#REF!","v":{"$error":"#REF!"}},{"$f":"#REF!","v":{"$error":"#REF!"}},{"$f":"#REF!","v":{"$error":"#REF!"}},{"$f":"#REF!","v":{"$error":"#REF!"}},{"$f":"#REF!","v":{"$error":"#REF!"}},{"$f":"#REF!","v":{"$error":"#REF!"}},{"$f":"#REF!","v":{"$error":"#REF!"}},{"$f":"#REF!","v":{"$error":"#REF!"}},{"$f":"#REF!","v":{"$error":"#REF!"}},{"$f":"#REF!","v":{"$error":"#REF!"}},{"$f":"#REF!","v":{"$error":"#REF!"}},{"$f":"#REF!","v":{"$error":"#REF!"}},{"$f":"#REF!","v":{"$error":"#REF!"}},{"$f":"#REF!","v":{"$error":"#REF!"}},{"$f":"#REF!","v":{"$error":"#REF!"}},{"$f":"#REF!","v":{"$error":"#REF!"}},{"$f":"#REF!","v":{"$error":"#REF!"}},{"$f":"#REF!","v":{"$error":"#REF!"}},{"$f":"#REF!","v":{"$error":"#REF!"}},{"$f":"#REF!","v":{"$error":"#REF!"}},{"$f":"#REF!","v":{"$error":"#REF!"}},{"$f":"#REF!","v":{"$error":"#REF!"}},{"$f":"#REF!","v":{"$error":"#REF!"}},{"$error":"#REF!"},{"$error":"#REF!"},{"$error":"#REF!"},{"$error":"#REF!"},{"$error":"#REF!"},{"$error":"#REF!"}]
[{"$f":"#REF!","v":{"$error":"#REF!"}},{"$f":"#REF!","v":{"$error":"#REF!"}},{"$f":"#REF!","v":{"$error":"#REF!"}},"БД_Отчеты_СРФ_4_кв_2013.xlsm","4_кв_2013.",{"$f":"#REF!","v":{"$error":"#REF!"}},{"$f":"#REF!","v":{"$error":"#REF!"}},{"$f":"#REF!","v":{"$error":"#REF!"}},{"$f":"#REF!","v":{"$error":"#REF!"}},{"$f":"#REF!","v":{"$error":"#REF!"}},{"$f":"#REF!","v":{"$error":"#REF!"}},{"$f":"#REF!","v":{"$error":"#REF!"}},{"$f":"#REF!","v":{"$error":"#REF!"}},{"$f":"#REF!","v":{"$error":"#REF!"}},{"$f":"#REF!","v":{"$error":"#REF!"}},{"$f":"#REF!","v":{"$error":"#REF!"}},{"$f":"#REF!","v":{"$error":"#REF!"}},{"$f":"#REF!","v":{"$error":"#REF!"}},{"$f":"#REF!","v":{"$error":"#REF!"}},{"$f":"#REF!","v":{"$error":"#REF!"}},{"$f":"#REF!","v":{"$error":"#REF!"}},{"$f":"#REF!","v":{"$error":"#REF!"}},{"$f":"#REF!","v":{"$error":"#REF!"}},{"$f":"#REF!","v":{"$error":"#REF!"}},{"$f":"#REF!","v":{"$error":"#REF!"}},{"$f":"#REF!","v":{"$error":"#REF!"}},{"$f":"#REF!","v":{"$error":"#REF!"}},{"$f":"#REF!","v":{"$error":"#REF!"}},{"$f":"#REF!","v":{"$error":"#REF!"}},{"$f":"#REF!","v":{"$error":"#REF!"}},{"$error":"#REF!"},{"$error":"#REF!"},{"$error":"#REF!"},{"$error":"#REF!"},{"$error":"#REF!"},{"$error":"#REF!"}]
[{"$f":"#REF!","v":{"$error":"#REF!"}},{"$f":"#REF!","v":{"$error":"#REF!"}},{"$f":"#REF!","v":{"$error":"#REF!"}},"БД_Отчеты_СРФ_4_кв_2013.xlsm","4_кв_2013.",{"$f":"#REF!","v":{"$error":"#REF!"}},{"$f":"#REF!","v":{"$error":"#REF!"}},{"$f":"#REF!","v":{"$error":"#REF!"}},{"$f":"#REF!","v":{"$error":"#REF!"}},{"$f":"#REF!","v":{"$error":"#REF!"}},{"$f":"#REF!","v":{"$error":"#REF!"}},{"$f":"#REF!","v":{"$error":"#REF!"}},{"$f":"#REF!","v":{"$error":"#REF!"}},{"$f":"#REF!","v":{"$error":"#REF!"}},{"$f":"#REF!","v":{"$error":"#REF!"}},{"$f":"#REF!","v":{"$error":"#REF!"}},{"$f":"#REF!","v":{"$error":"#REF!"}},{"$f":"#REF!","v":{"$error":"#REF!"}},{"$f":"#REF!","v":{"$error":"#REF!"}},{"$f":"#REF!","v":{"$error":"#REF!"}},{"$f":"#REF!","v":{"$error":"#REF!"}},{"$f":"#REF!","v":{"$error":"#REF!"}},{"$f":"#REF!","v":{"$error":"#REF!"}},{"$f":"#REF!","v":{"$error":"#REF!"}},{"$f":"#REF!","v":{"$error":"#REF!"}},{"$f":"#REF!","v":{"$error":"#REF!"}},{"$f":"#REF!","v":{"$error":"#REF!"}},{"$f":"#REF!","v":{"$error":"#REF!"}},{"$f":"#REF!","v":{"$error":"#REF!"}},{"$f":"#REF!","v":{"$error":"#REF!"}},{"$error":"#REF!"},{"$error":"#REF!"},{"$error":"#REF!"},{"$error":"#REF!"},{"$error":"#REF!"},{"$error":"#REF!"}]
[{"$f":"#REF!","v":{"$error":"#REF!"}},{"$f":"#REF!","v":{"$error":"#REF!"}},{"$f":"#REF!","v":{"$error":"#REF!"}},"БД_Отчеты_СРФ_4_кв_2013.xlsm","4_кв_2013.",{"$f":"#REF!","v":{"$error":"#REF!"}},{"$f":"#REF!","v":{"$error":"#REF!"}},{"$f":"#REF!","v":{"$error":"#REF!"}},{"$f":"#REF!","v":{"$error":"#REF!"}},{"$f":"#REF!","v":{"$error":"#REF!"}},{"$f":"#REF!","v":{"$error":"#REF!"}},{"$f":"#REF!","v":{"$error":"#REF!"}},{"$f":"#REF!","v":{"$error":"#REF!"}},{"$f":"#REF!","v":{"$error":"#REF!"}},{"$f":"#REF!","v":{"$error":"#REF!"}},{"$f":"#REF!","v":{"$error":"#REF!"}},{"$f":"#REF!","v":{"$error":"#REF!"}},{"$f":"#REF!","v":{"$error":"#REF!"}},{"$f":"#REF!","v":{"$error":"#REF!"}},{"$f":"#REF!","v":{"$error":"#REF!"}},{"$f":"#REF!","v":{"$error":"#REF!"}},{"$f":"#REF!","v":{"$error":"#REF!"}},{"$f":"#REF!","v":{"$error":"#REF!"}},{"$f":"#REF!","v":{"$error":"#REF!"}},{"$f":"#REF!","v":{"$error":"#REF!"}},{"$f":"#REF!","v":{"$error":"#REF!"}},{"$f":"#REF!","v":{"$error":"#REF!"}},{"$f":"#REF!","v":{"$error":"#REF!"}},{"$f":"#REF!","v":{"$error":"#REF!"}},{"$f":"#REF!","v":{"$error":"#REF!"}},{"$error":"#REF!"},{"$error":"#REF!"},{"$error":"#REF!"},{"$error":"#REF!"},{"$error":"#REF!"},{"$error":"#REF!"}]
[{"$f":"#REF!","v":{"$error":"#REF!"}},{"$f":"#REF!","v":{"$error":"#REF!"}},{"$f":"#REF!","v":{"$error":"#REF!"}},"БД_Отчеты_СРФ_4_кв_2013.xlsm","4_кв_2013.",{"$f":"#REF!","v":{"$error":"#REF!"}},{"$f":"#REF!","v":{"$error":"#REF!"}},{"$f":"#REF!","v":{"$error":"#REF!"}},{"$f":"#REF!","v":{"$error":"#REF!"}},{"$f":"#REF!","v":{"$error":"#REF!"}},{"$f":"#REF!","v":{"$error":"#REF!"}},{"$f":"#REF!","v":{"$error":"#REF!"}},{"$f":"#REF!","v":{"$error":"#REF!"}},{"$f":"#REF!","v":{"$error":"#REF!"}},{"$f":"#REF!","v":{"$error":"#REF!"}},{"$f":"#REF!","v":{"$error":"#REF!"}},{"$f":"#REF!","v":{"$error":"#REF!"}},{"$f":"#REF!","v":{"$error":"#REF!"}},{"$f":"#REF!","v":{"$error":"#REF!"}},{"$f":"#REF!","v":{"$error":"#REF!"}},{"$f":"#REF!","v":{"$error":"#REF!"}},{"$f":"#REF!","v":{"$error":"#REF!"}},{"$f":"#REF!","v":{"$error":"#REF!"}},{"$f":"#REF!","v":{"$error":"#REF!"}},{"$f":"#REF!","v":{"$error":"#REF!"}},{"$f":"#REF!","v":{"$error":"#REF!"}},{"$f":"#REF!","v":{"$error":"#REF!"}},{"$f":"#REF!","v":{"$error":"#REF!"}},{"$f":"#REF!","v":{"$error":"#REF!"}},{"$f":"#REF!","v":{"$error":"#REF!"}},{"$error":"#REF!"},{"$error":"#REF!"},{"$error":"#REF!"},{"$error":"#REF!"},{"$error":"#REF!"},{"$error":"#REF!"}]
[{"$f":"#REF!","v":{"$error":"#REF!"}},{"$f":"#REF!","v":{"$error":"#REF!"}},{"$f":"#REF!","v":{"$error":"#REF!"}},"БД_Отчеты_СРФ_4_кв_2013.xlsm","4_кв_2013.",{"$f":"#REF!","v":{"$error":"#REF!"}},{"$f":"#REF!","v":{"$error":"#REF!"}},{"$f":"#REF!","v":{"$error":"#REF!"}},{"$f":"#REF!","v":{"$error":"#REF!"}},{"$f":"#REF!","v":{"$error":"#REF!"}},{"$f":"#REF!","v":{"$error":"#REF!"}},{"$f":"#REF!","v":{"$error":"#REF!"}},{"$f":"#REF!","v":{"$error":"#REF!"}},{"$f":"#REF!","v":{"$error":"#REF!"}},{"$f":"#REF!","v":{"$error":"#REF!"}},{"$f":"#REF!","v":{"$error":"#REF!"}},{"$f":"#REF!","v":{"$error":"#REF!"}},{"$f":"#REF!","v":{"$error":"#REF!"}},{"$f":"#REF!","v":{"$error":"#REF!"}},{"$f":"#REF!","v":{"$error":"#REF!"}},{"$f":"#REF!","v":{"$error":"#REF!"}},{"$f":"#REF!","v":{"$error":"#REF!"}},{"$f":"#REF!","v":{"$error":"#REF!"}},{"$f":"#REF!","v":{"$error":"#REF!"}},{"$f":"#REF!","v":{"$error":"#REF!"}},{"$f":"#REF!","v":{"$error":"#REF!"}},{"$f":"#REF!","v":{"$error":"#REF!"}},{"$f":"#REF!","v":{"$error":"#REF!"}},{"$f":"#REF!","v":{"$error":"#REF!"}},{"$f":"#REF!","v":{"$error":"#REF!"}},{"$error":"#REF!"},{"$error":"#REF!"},{"$error":"#REF!"},{"$error":"#REF!"},{"$error":"#REF!"},{"$error":"#REF!"}]
[{"$f":"#REF!","v":{"$error":"#REF!"}},{"$f":"#REF!","v":{"$error":"#REF!"}},{"$f":"#REF!","v":{"$error":"#REF!"}},"БД_Отчеты_СРФ_4_кв_2013.xlsm","4_кв_2013.",{"$f":"#REF!","v":{"$error":"#REF!"}},{"$f":"#REF!","v":{"$error":"#REF!"}},{"$f":"#REF!","v":{"$error":"#REF!"}},{"$f":"#REF!","v":{"$error":"#REF!"}},{"$f":"#REF!","v":{"$error":"#REF!"}},{"$f":"#REF!","v":{"$error":"#REF!"}},{"$f":"#REF!","v":{"$error":"#REF!"}},{"$f":"#REF!","v":{"$error":"#REF!"}},{"$f":"#REF!","v":{"$error":"#REF!"}},{"$f":"#REF!","v":{"$error":"#REF!"}},{"$f":"#REF!","v":{"$error":"#REF!"}},{"$f":"#REF!","v":{"$error":"#REF!"}},{"$f":"#REF!","v":{"$error":"#REF!"}},{"$f":"#REF!","v":{"$error":"#REF!"}},{"$f":"#REF!","v":{"$error":"#REF!"}},{"$f":"#REF!","v":{"$error":"#REF!"}},{"$f":"#REF!","v":{"$error":"#REF!"}},{"$f":"#REF!","v":{"$error":"#REF!"}},{"$f":"#REF!","v":{"$error":"#REF!"}},{"$f":"#REF!","v":{"$error":"#REF!"}},{"$f":"#REF!","v":{"$error":"#REF!"}},{"$f":"#REF!","v":{"$error":"#REF!"}},{"$f":"#REF!","v":{"$error":"#REF!"}},{"$f":"#REF!","v":{"$error":"#REF!"}},{"$f":"#REF!","v":{"$error":"#REF!"}},{"$error":"#REF!"},{"$error":"#REF!"},{"$error":"#REF!"},{"$error":"#REF!"},{"$error":"#REF!"},{"$error":"#REF!"}]
[{"$f":"#REF!","v":{"$error":"#REF!"}},{"$f":"#REF!","v":{"$error":"#REF!"}},{"$f":"#REF!","v":{"$error":"#REF!"}},"БД_Отчеты_СРФ_4_кв_2013.xlsm","4_кв_2013.",{"$f":"#REF!","v":{"$error":"#REF!"}},{"$f":"#REF!","v":{"$error":"#REF!"}},{"$f":"#REF!","v":{"$error":"#REF!"}},{"$f":"#REF!","v":{"$error":"#REF!"}},{"$f":"#REF!","v":{"$error":"#REF!"}},{"$f":"#REF!","v":{"$error":"#REF!"}},{"$f":"#REF!","v":{"$error":"#REF!"}},{"$f":"#REF!","v":{"$error":"#REF!"}},{"$f":"#REF!","v":{"$error":"#REF!"}},{"$f":"#REF!","v":{"$error":"#REF!"}},{"$f":"#REF!","v":{"$error":"#REF!"}},{"$f":"#REF!","v":{"$error":"#REF!"}},{"$f":"#REF!","v":{"$error":"#REF!"}},{"$f":"#REF!","v":{"$error":"#REF!"}},{"$f":"#REF!","v":{"$error":"#REF!"}},{"$f":"#REF!","v":{"$error":"#REF!"}},{"$f":"#REF!","v":{"$error":"#REF!"}},{"$f":"#REF!","v":{"$error":"#REF!"}},{"$f":"#REF!","v":{"$error":"#REF!"}},{"$f":"#REF!","v":{"$error":"#REF!"}},{"$f":"#REF!","v":{"$error":"#REF!"}},{"$f":"#REF!","v":{"$error":"#REF!"}},{"$f":"#REF!","v":{"$error":"#REF!"}},{"$f":"#REF!","v":{"$error":"#REF!"}},{"$f":"#REF!","v":{"$error":"#REF!"}},{"$error":"#REF!"},{"$error":"#REF!"},{"$error":"#REF!"},{"$error":"#REF!"},{"$error":"#REF!"},{"$error":"#REF!"}]
[{"$f":"#REF!","v":{"$error":"#REF!"}},{"$f":"#REF!","v":{"$error":"#REF!"}},{"$f":"#REF!","v":{"$error":"#REF!"}},"БД_Отчеты_СРФ_4_кв_2013.xlsm","4_кв_2013.",{"$f":"#REF!","v":{"$error":"#REF!"}},{"$f":"#REF!","v":{"$error":"#REF!"}},{"$f":"#REF!","v":{"$error":"#REF!"}},{"$f":"#REF!","v":{"$error":"#REF!"}},{"$f":"#REF!","v":{"$error":"#REF!"}},{"$f":"#REF!","v":{"$error":"#REF!"}},{"$f":"#REF!","v":{"$error":"#REF!"}},{"$f":"#REF!","v":{"$error":"#REF!"}},{"$f":"#REF!","v":{"$error":"#REF!"}},{"$f":"#REF!","v":{"$error":"#REF!"}},{"$f":"#REF!","v":{"$error":"#REF!"}},{"$f":"#REF!","v":{"$error":"#REF!"}},{"$f":"#REF!","v":{"$error":"#REF!"}},{"$f":"#REF!","v":{"$error":"#REF!"}},{"$f":"#REF!","v":{"$error":"#REF!"}},{"$f":"#REF!","v":{"$error":"#REF!"}},{"$f":"#REF!","v":{"$error":"#REF!"}},{"$f":"#REF!","v":{"$error":"#REF!"}},{"$f":"#REF!","v":{"$error":"#REF!"}},{"$f":"#REF!","v":{"$error":"#REF!"}},{"$f":"#REF!","v":{"$error":"#REF!"}},{"$f":"#REF!","v":{"$error":"#REF!"}},{"$f":"#REF!","v":{"$error":"#REF!"}},{"$f":"#REF!","v":{"$error":"#REF!"}},{"$f":"#REF!","v":{"$error":"#REF!"}},{"$error":"#REF!"},{"$error":"#REF!"},{"$error":"#REF!"},{"$error":"#REF!"},{"$error":"#REF!"},{"$error":"#REF!"}]
[{"$f":"#REF!","v":{"$error":"#REF!"}},{"$f":"#REF!","v":{"$error":"#REF!"}},{"$f":"#REF!","v":{"$error":"#REF!"}},"БД_Отчеты_СРФ_4_кв_2013.xlsm","4_кв_2013.",{"$f":"#REF!","v":{"$error":"#REF!"}},{"$f":"#REF!","v":{"$error":"#REF!"}},{"$f":"#REF!","v":{"$error":"#REF!"}},{"$f":"#REF!","v":{"$error":"#REF!"}},{"$f":"#REF!","v":{"$error":"#REF!"}},{"$f":"#REF!","v":{"$error":"#REF!"}},{"$f":"#REF!","v":{"$error":"#REF!"}},{"$f":"#REF!","v":{"$error":"#REF!"}},{"$f":"#REF!","v":{"$error":"#REF!"}},{"$f":"#REF!","v":{"$error":"#REF!"}},{"$f":"#REF!","v":{"$error":"#REF!"}},{"$f":"#REF!","v":{"$error":"#REF!"}},{"$f":"#REF!","v":{"$error":"#REF!"}},{"$f":"#REF!","v":{"$error":"#REF!"}},{"$f":"#REF!","v":{"$error":"#REF!"}},{"$f":"#REF!","v":{"$error":"#REF!"}},{"$f":"#REF!","v":{"$error":"#REF!"}},{"$f":"#REF!","v":{"$error":"#REF!"}},{"$f":"#REF!","v":{"$error":"#REF!"}},{"$f":"#REF!","v":{"$error":"#REF!"}},{"$f":"#REF!","v":{"$error":"#REF!"}},{"$f":"#REF!","v":{"$error":"#REF!"}},{"$f":"#REF!","v":{"$error":"#REF!"}},{"$f":"#REF!","v":{"$error":"#REF!"}},{"$f":"#REF!","v":{"$error":"#REF!"}},{"$error":"#REF!"},{"$error":"#REF!"},{"$error":"#REF!"},{"$error":"#REF!"},{"$error":"#REF!"},{"$error":"#REF!"}]
[{"$f":"#REF!","v":{"$error":"#REF!"}},{"$f":"#REF!","v":{"$error":"#REF!"}},{"$f":"#REF!","v":{"$error":"#REF!"}},"БД_Отчеты_СРФ_4_кв_2013.xlsm","4_кв_2013.",{"$f":"#REF!","v":{"$error":"#REF!"}},{"$f":"#REF!","v":{"$error":"#REF!"}},{"$f":"#REF!","v":{"$error":"#REF!"}},{"$f":"#REF!","v":{"$error":"#REF!"}},{"$f":"#REF!","v":{"$error":"#REF!"}},{"$f":"#REF!","v":{"$error":"#REF!"}},{"$f":"#REF!","v":{"$error":"#REF!"}},{"$f":"#REF!","v":{"$error":"#REF!"}},{"$f":"#REF!","v":{"$error":"#REF!"}},{"$f":"#REF!","v":{"$error":"#REF!"}},{"$f":"#REF!","v":{"$error":"#REF!"}},{"$f":"#REF!","v":{"$error":"#REF!"}},{"$f":"#REF!","v":{"$error":"#REF!"}},{"$f":"#REF!","v":{"$error":"#REF!"}},{"$f":"#REF!","v":{"$error":"#REF!"}},{"$f":"#REF!","v":{"$error":"#REF!"}},{"$f":"#REF!","v":{"$error":"#REF!"}},{"$f":"#REF!","v":{"$error":"#REF!"}},{"$f":"#REF!","v":{"$error":"#REF!"}},{"$f":"#REF!","v":{"$error":"#REF!"}},{"$f":"#REF!","v":{"$error":"#REF!"}},{"$f":"#REF!","v":{"$error":"#REF!"}},{"$f":"#REF!","v":{"$error":"#REF!"}},{"$f":"#REF!","v":{"$error":"#REF!"}},{"$f":"#REF!","v":{"$error":"#REF!"}},{"$error":"#REF!"},{"$error":"#REF!"},{"$error":"#REF!"},{"$error":"#REF!"},{"$error":"#REF!"},{"$error":"#REF!"}]
[{"$f":"#REF!","v":{"$error":"#REF!"}},{"$f":"#REF!","v":{"$error":"#REF!"}},{"$f":"#REF!","v":{"$error":"#REF!"}},"БД_Отчеты_СРФ_4_кв_2013.xlsm","4_кв_2013.",{"$f":"#REF!","v":{"$error":"#REF!"}},{"$f":"#REF!","v":{"$error":"#REF!"}},{"$f":"#REF!","v":{"$error":"#REF!"}},{"$f":"#REF!","v":{"$error":"#REF!"}},{"$f":"#REF!","v":{"$error":"#REF!"}},{"$f":"#REF!","v":{"$error":"#REF!"}},{"$f":"#REF!","v":{"$error":"#REF!"}},{"$f":"#REF!","v":{"$error":"#REF!"}},{"$f":"#REF!","v":{"$error":"#REF!"}},{"$f":"#REF!","v":{"$error":"#REF!"}},{"$f":"#REF!","v":{"$error":"#REF!"}},{"$f":"#REF!","v":{"$error":"#REF!"}},{"$f":"#REF!","v":{"$error":"#REF!"}},{"$f":"#REF!","v":{"$error":"#REF!"}},{"$f":"#REF!","v":{"$error":"#REF!"}},{"$f":"#REF!","v":{"$error":"#REF!"}},{"$f":"#REF!","v":{"$error":"#REF!"}},{"$f":"#REF!","v":{"$error":"#REF!"}},{"$f":"#REF!","v":{"$error":"#REF!"}},{"$f":"#REF!","v":{"$error":"#REF!"}},{"$f":"#REF!","v":{"$error":"#REF!"}},{"$f":"#REF!","v":{"$error":"#REF!"}},{"$f":"#REF!","v":{"$error":"#REF!"}},{"$f":"#REF!","v":{"$error":"#REF!"}},{"$f":"#REF!","v":{"$error":"#REF!"}},{"$error":"#REF!"},{"$error":"#REF!"},{"$error":"#REF!"},{"$error":"#REF!"},{"$error":"#REF!"},{"$error":"#REF!"}]
[{"$f":"#REF!","v":{"$error":"#REF!"}},{"$f":"#REF!","v":{"$error":"#REF!"}},{"$f":"#REF!","v":{"$error":"#REF!"}},"БД_Отчеты_СРФ_4_кв_2013.xlsm","4_кв_2013.",{"$f":"#REF!","v":{"$error":"#REF!"}},{"$f":"#REF!","v":{"$error":"#REF!"}},{"$f":"#REF!","v":{"$error":"#REF!"}},{"$f":"#REF!","v":{"$error":"#REF!"}},{"$f":"#REF!","v":{"$error":"#REF!"}},{"$f":"#REF!","v":{"$error":"#REF!"}},{"$f":"#REF!","v":{"$error":"#REF!"}},{"$f":"#REF!","v":{"$error":"#REF!"}},{"$f":"#REF!","v":{"$error":"#REF!"}},{"$f":"#REF!","v":{"$error":"#REF!"}},{"$f":"#REF!","v":{"$error":"#REF!"}},{"$f":"#REF!","v":{"$error":"#REF!"}},{"$f":"#REF!","v":{"$error":"#REF!"}},{"$f":"#REF!","v":{"$error":"#REF!"}},{"$f":"#REF!","v":{"$error":"#REF!"}},{"$f":"#REF!","v":{"$error":"#REF!"}},{"$f":"#REF!","v":{"$error":"#REF!"}},{"$f":"#REF!","v":{"$error":"#REF!"}},{"$f":"#REF!","v":{"$error":"#REF!"}},{"$f":"#REF!","v":{"$error":"#REF!"}},{"$f":"#REF!","v":{"$error":"#REF!"}},{"$f":"#REF!","v":{"$error":"#REF!"}},{"$f":"#REF!","v":{"$error":"#REF!"}},{"$f":"#REF!","v":{"$error":"#REF!"}},{"$f":"#REF!","v":{"$error":"#REF!"}},{"$error":"#REF!"},{"$error":"#REF!"},{"$error":"#REF!"},{"$error":"#REF!"},{"$error":"#REF!"},{"$error":"#REF!"}]
[{"$f":"#REF!","v":{"$error":"#REF!"}},{"$f":"#REF!","v":{"$error":"#REF!"}},{"$f":"#REF!","v":{"$error":"#REF!"}},"БД_Отчеты_СРФ_4_кв_2013.xlsm","4_кв_2013.",{"$f":"#REF!","v":{"$error":"#REF!"}},{"$f":"#REF!","v":{"$error":"#REF!"}},{"$f":"#REF!","v":{"$error":"#REF!"}},{"$f":"#REF!","v":{"$error":"#REF!"}},{"$f":"#REF!","v":{"$error":"#REF!"}},{"$f":"#REF!","v":{"$error":"#REF!"}},{"$f":"#REF!","v":{"$error":"#REF!"}},{"$f":"#REF!","v":{"$error":"#REF!"}},{"$f":"#REF!","v":{"$error":"#REF!"}},{"$f":"#REF!","v":{"$error":"#REF!"}},{"$f":"#REF!","v":{"$error":"#REF!"}},{"$f":"#REF!","v":{"$error":"#REF!"}},{"$f":"#REF!","v":{"$error":"#REF!"}},{"$f":"#REF!","v":{"$error":"#REF!"}},{"$f":"#REF!","v":{"$error":"#REF!"}},{"$f":"#REF!","v":{"$error":"#REF!"}},{"$f":"#REF!","v":{"$error":"#REF!"}},{"$f":"#REF!","v":{"$error":"#REF!"}},{"$f":"#REF!","v":{"$error":"#REF!"}},{"$f":"#REF!","v":{"$error":"#REF!"}},{"$f":"#REF!","v":{"$error":"#REF!"}},{"$f":"#REF!","v":{"$error":"#REF!"}},{"$f":"#REF!","v":{"$error":"#REF!"}},{"$f":"#REF!","v":{"$error":"#REF!"}},{"$f":"#REF!","v":{"$error":"#REF!"}},{"$f":"INDEX(Номер_по_Конституции,MATCH(C38,Субъекты_РФ,0),1)","v":{"$error":"#REF!"}},{"$f":"INDEX(Федеральный_округ,MATCH(C38,Субъекты_РФ,0),1)","v":{"$error":"#REF!"}},{"$f":"INDEX(Код_ОКАТО,MATCH(C38,Субъекты_РФ,0),1)","v":{"$error":"#REF!"}},{"$f":"IF(G38=0,\"Не указано\",INDEX(Госзаказчик,MATCH(G38,Код_мероприятия,0),1))","v":{"$error":"#REF!"}},{"$f":"IF(G38=0,\"Не указано\",INDEX(Вид_расходов,MATCH(G38,Код_мероприятия,0),1))","v":{"$error":"#REF!"}},{"$f":"IF(G38=0,\"Не указано\",INDEX(РБ_МБ_ВБИ,MATCH(G38,Код_мероприятия,0),1))","v":{"$error":"#REF!"}}]
[{"$f":"#REF!","v":{"$error":"#REF!"}},{"$f":"#REF!","v":{"$error":"#REF!"}},{"$f":"#REF!","v":{"$error":"#REF!"}},"БД_Отчеты_СРФ_4_кв_2013.xlsm","4_кв_2013.",{"$f":"#REF!","v":{"$error":"#REF!"}},{"$f":"#REF!","v":{"$error":"#REF!"}},{"$f":"#REF!","v":{"$error":"#REF!"}},{"$f":"#REF!","v":{"$error":"#REF!"}},{"$f":"#REF!","v":{"$error":"#REF!"}},{"$f":"#REF!","v":{"$error":"#REF!"}},{"$f":"#REF!","v":{"$error":"#REF!"}},{"$f":"#REF!","v":{"$error":"#REF!"}},{"$f":"#REF!","v":{"$error":"#REF!"}},{"$f":"#REF!","v":{"$error":"#REF!"}},{"$f":"#REF!","v":{"$error":"#REF!"}},{"$f":"#REF!","v":{"$error":"#REF!"}},{"$f":"#REF!","v":{"$error":"#REF!"}},{"$f":"#REF!","v":{"$error":"#REF!"}},{"$f":"#REF!","v":{"$error":"#REF!"}},{"$f":"#REF!","v":{"$error":"#REF!"}},{"$f":"#REF!","v":{"$error":"#REF!"}},{"$f":"#REF!","v":{"$error":"#REF!"}},{"$f":"#REF!","v":{"$error":"#REF!"}},{"$f":"#REF!","v":{"$error":"#REF!"}},{"$f":"#REF!","v":{"$error":"#REF!"}},{"$f":"#REF!","v":{"$error":"#REF!"}},{"$f":"#REF!","v":{"$error":"#REF!"}},{"$f":"#REF!","v":{"$error":"#REF!"}},{"$f":"#REF!","v":{"$error":"#REF!"}},{"$error":"#REF!"},{"$error":"#REF!"},{"$error":"#REF!"},{"$error":"#REF!"},{"$error":"#REF!"},{"$error":"#REF!"}]
[{"$f":"#REF!","v":{"$error":"#REF!"}},{"$f":"#REF!","v":{"$error":"#REF!"}},{"$f":"#REF!","v":{"$error":"#REF!"}},"БД_Отчеты_СРФ_4_кв_2013.xlsm","4_кв_2013.",{"$f":"#REF!","v":{"$error":"#REF!"}},{"$f":"#REF!","v":{"$error":"#REF!"}},{"$f":"#REF!","v":{"$error":"#REF!"}},{"$f":"#REF!","v":{"$error":"#REF!"}},{"$f":"#REF!","v":{"$error":"#REF!"}},{"$f":"#REF!","v":{"$error":"#REF!"}},{"$f":"#REF!","v":{"$error":"#REF!"}},{"$f":"#REF!","v":{"$error":"#REF!"}},{"$f":"#REF!","v":{"$error":"#REF!"}},{"$f":"#REF!","v":{"$error":"#REF!"}},{"$f":"#REF!","v":{"$error":"#REF!"}},{"$f":"#REF!","v":{"$error":"#REF!"}},{"$f":"#REF!","v":{"$error":"#REF!"}},{"$f":"#REF!","v":{"$error":"#REF!"}},{"$f":"#REF!","v":{"$error":"#REF!"}},{"$f":"#REF!","v":{"$error":"#REF!"}},{"$f":"#REF!","v":{"$error":"#REF!"}},{"$f":"#REF!","v":{"$error":"#REF!"}},{"$f":"#REF!","v":{"$error":"#REF!"}},{"$f":"#REF!","v":{"$error":"#REF!"}},{"$f":"#REF!","v":{"$error":"#REF!"}},{"$f":"#REF!","v":{"$error":"#REF!"}},{"$f":"#REF!","v":{"$error":"#REF!"}},{"$f":"#REF!","v":{"$error":"#REF!"}},{"$f":"#REF!","v":{"$error":"#REF!"}},{"$error":"#REF!"},{"$error":"#REF!"},{"$error":"#REF!"},{"$error":"#REF!"},{"$error":"#REF!"},{"$error":"#REF!"}]
[{"$f":"#REF!","v":{"$error":"#REF!"}},{"$f":"#REF!","v":{"$error":"#REF!"}},{"$f":"#REF!","v":{"$error":"#REF!"}},"БД_Отчеты_СРФ_4_кв_2013.xlsm","4_кв_2013.",{"$f":"#REF!","v":{"$error":"#REF!"}},{"$f":"#REF!","v":{"$error":"#REF!"}},{"$f":"#REF!","v":{"$error":"#REF!"}},{"$f":"#REF!","v":{"$error":"#REF!"}},{"$f":"#REF!","v":{"$error":"#REF!"}},{"$f":"#REF!","v":{"$error":"#REF!"}},{"$f":"#REF!","v":{"$error":"#REF!"}},{"$f":"#REF!","v":{"$error":"#REF!"}},{"$f":"#REF!","v":{"$error":"#REF!"}},{"$f":"#REF!","v":{"$error":"#REF!"}},{"$f":"#REF!","v":{"$error":"#REF!"}},{"$f":"#REF!","v":{"$error":"#REF!"}},{"$f":"#REF!","v":{"$error":"#REF!"}},{"$f":"#REF!","v":{"$error":"#REF!"}},{"$f":"#REF!","v":{"$error":"#REF!"}},{"$f":"#REF!","v":{"$error":"#REF!"}},{"$f":"#REF!","v":{"$error":"#REF!"}},{"$f":"#REF!","v":{"$error":"#REF!"}},{"$f":"#REF!","v":{"$error":"#REF!"}},{"$f":"#REF!","v":{"$error":"#REF!"}},{"$f":"#REF!","v":{"$error":"#REF!"}},{"$f":"#REF!","v":{"$error":"#REF!"}},{"$f":"#REF!","v":{"$error":"#REF!"}},{"$f":"#REF!","v":{"$error":"#REF!"}},{"$f":"#REF!","v":{"$error":"#REF!"}},{"$error":"#REF!"},{"$error":"#REF!"},{"$error":"#REF!"},{"$error":"#REF!"},{"$error":"#REF!"},{"$error":"#REF!"}]
[{"$f":"#REF!","v":{"$error":"#REF!"}},{"$f":"#REF!","v":{"$error":"#REF!"}},{"$f":"#REF!","v":{"$error":"#REF!"}},"БД_Отчеты_СРФ_4_кв_2013.xlsm","4_кв_2013.",{"$f":"#REF!","v":{"$error":"#REF!"}},{"$f":"#REF!","v":{"$error":"#REF!"}},{"$f":"#REF!","v":{"$error":"#REF!"}},{"$f":"#REF!","v":{"$error":"#REF!"}},{"$f":"#REF!","v":{"$error":"#REF!"}},{"$f":"#REF!","v":{"$error":"#REF!"}},{"$f":"#REF!","v":{"$error":"#REF!"}},{"$f":"#REF!","v":{"$error":"#REF!"}},{"$f":"#REF!","v":{"$error":"#REF!"}},{"$f":"#REF!","v":{"$error":"#REF!"}},{"$f":"#REF!","v":{"$error":"#REF!"}},{"$f":"#REF!","v":{"$error":"#REF!"}},{"$f":"#REF!","v":{"$error":"#REF!"}},{"$f":"#REF!","v":{"$error":"#REF!"}},{"$f":"#REF!","v":{"$error":"#REF!"}},{"$f":"#REF!","v":{"$error":"#REF!"}},{"$f":"#REF!","v":{"$error":"#REF!"}},{"$f":"#REF!","v":{"$error":"#REF!"}},{"$f":"#REF!","v":{"$error":"#REF!"}},{"$f":"#REF!","v":{"$error":"#REF!"}},{"$f":"#REF!","v":{"$error":"#REF!"}},{"$f":"#REF!","v":{"$error":"#REF!"}},{"$f":"#REF!","v":{"$error":"#REF!"}},{"$f":"#REF!","v":{"$error":"#REF!"}},{"$f":"#REF!","v":{"$error":"#REF!"}},{"$error":"#REF!"},{"$error":"#REF!"},{"$error":"#REF!"},{"$error":"#REF!"},{"$error":"#REF!"},{"$error":"#REF!"}]
[{"$f":"#REF!","v":{"$error":"#REF!"}},{"$f":"#REF!","v":{"$error":"#REF!"}},{"$f":"#REF!","v":{"$error":"#REF!"}},"БД_Отчеты_СРФ_4_кв_2013.xlsm","4_кв_2013.",{"$f":"#REF!","v":{"$error":"#REF!"}},{"$f":"#REF!","v":{"$error":"#REF!"}},{"$f":"#REF!","v":{"$error":"#REF!"}},{"$f":"#REF!","v":{"$error":"#REF!"}},{"$f":"#REF!","v":{"$error":"#REF!"}},{"$f":"#REF!","v":{"$error":"#REF!"}},{"$f":"#REF!","v":{"$error":"#REF!"}},{"$f":"#REF!","v":{"$error":"#REF!"}},{"$f":"#REF!","v":{"$error":"#REF!"}},{"$f":"#REF!","v":{"$error":"#REF!"}},{"$f":"#REF!","v":{"$error":"#REF!"}},{"$f":"#REF!","v":{"$error":"#REF!"}},{"$f":"#REF!","v":{"$error":"#REF!"}},{"$f":"#REF!","v":{"$error":"#REF!"}},{"$f":"#REF!","v":{"$error":"#REF!"}},{"$f":"#REF!","v":{"$error":"#REF!"}},{"$f":"#REF!","v":{"$error":"#REF!"}},{"$f":"#REF!","v":{"$error":"#REF!"}},{"$f":"#REF!","v":{"$error":"#REF!"}},{"$f":"#REF!","v":{"$error":"#REF!"}},{"$f":"#REF!","v":{"$error":"#REF!"}},{"$f":"#REF!","v":{"$error":"#REF!"}},{"$f":"#REF!","v":{"$error":"#REF!"}},{"$f":"#REF!","v":{"$error":"#REF!"}},{"$f":"#REF!","v":{"$error":"#REF!"}},{"$error":"#REF!"},{"$error":"#REF!"},{"$error":"#REF!"},{"$error":"#REF!"},{"$error":"#REF!"},{"$error":"#REF!"}]
[{"$f":"#REF!","v":{"$error":"#REF!"}},{"$f":"#REF!","v":{"$error":"#REF!"}},{"$f":"#REF!","v":{"$error":"#REF!"}},"БД_Отчеты_СРФ_4_кв_2013.xlsm","4_кв_2013.",{"$f":"#REF!","v":{"$error":"#REF!"}},{"$f":"#REF!","v":{"$error":"#REF!"}},{"$f":"#REF!","v":{"$error":"#REF!"}},{"$f":"#REF!","v":{"$error":"#REF!"}},{"$f":"#REF!","v":{"$error":"#REF!"}},{"$f":"#REF!","v":{"$error":"#REF!"}},{"$f":"#REF!","v":{"$error":"#REF!"}},{"$f":"#REF!","v":{"$error":"#REF!"}},{"$f":"#REF!","v":{"$error":"#REF!"}},{"$f":"#REF!","v":{"$error":"#REF!"}},{"$f":"#REF!","v":{"$error":"#REF!"}},{"$f":"#REF!","v":{"$error":"#REF!"}},{"$f":"#REF!","v":{"$error":"#REF!"}},{"$f":"#REF!","v":{"$error":"#REF!"}},{"$f":"#REF!","v":{"$error":"#REF!"}},{"$f":"#REF!","v":{"$error":"#REF!"}},{"$f":"#REF!","v":{"$error":"#REF!"}},{"$f":"#REF!","v":{"$error":"#REF!"}},{"$f":"#REF!","v":{"$error":"#REF!"}},{"$f":"#REF!","v":{"$error":"#REF!"}},{"$f":"#REF!","v":{"$error":"#REF!"}},{"$f":"#REF!","v":{"$error":"#REF!"}},{"$f":"#REF!","v":{"$error":"#REF!"}},{"$f":"#REF!","v":{"$error":"#REF!"}},{"$f":"#REF!","v":{"$error":"#REF!"}},{"$error":"#REF!"},{"$error":"#REF!"},{"$error":"#REF!"},{"$error":"#REF!"},{"$error":"#REF!"},{"$error":"#REF!"}]
[{"$f":"#REF!","v":{"$error":"#REF!"}},{"$f":"#REF!","v":{"$error":"#REF!"}},{"$f":"#REF!","v":{"$error":"#REF!"}},"БД_Отчеты_СРФ_4_кв_2013.xlsm","4_кв_2013.",{"$f":"#REF!","v":{"$error":"#REF!"}},{"$f":"#REF!","v":{"$error":"#REF!"}},{"$f":"#REF!","v":{"$error":"#REF!"}},{"$f":"#REF!","v":{"$error":"#REF!"}},{"$f":"#REF!","v":{"$error":"#REF!"}},{"$f":"#REF!","v":{"$error":"#REF!"}},{"$f":"#REF!","v":{"$error":"#REF!"}},{"$f":"#REF!","v":{"$error":"#REF!"}},{"$f":"#REF!","v":{"$error":"#REF!"}},{"$f":"#REF!","v":{"$error":"#REF!"}},{"$f":"#REF!","v":{"$error":"#REF!"}},{"$f":"#REF!","v":{"$error":"#REF!"}},{"$f":"#REF!","v":{"$error":"#REF!"}},{"$f":"#REF!","v":{"$error":"#REF!"}},{"$f":"#REF!","v":{"$error":"#REF!"}},{"$f":"#REF!","v":{"$error":"#REF!"}},{"$f":"#REF!","v":{"$error":"#REF!"}},{"$f":"#REF!","v":{"$error":"#REF!"}},{"$f":"#REF!","v":{"$error":"#REF!"}},{"$f":"#REF!","v":{"$error":"#REF!"}},{"$f":"#REF!","v":{"$error":"#REF!"}},{"$f":"#REF!","v":{"$error":"#REF!"}},{"$f":"#REF!","v":{"$error":"#REF!"}},{"$f":"#REF!","v":{"$error":"#REF!"}},{"$f":"#REF!","v":{"$error":"#REF!"}},{"$error":"#REF!"},{"$error":"#REF!"},{"$error":"#REF!"},{"$error":"#REF!"},{"$error":"#REF!"},{"$error":"#REF!"}]
[{"$f":"#REF!","v":{"$error":"#REF!"}},{"$f":"#REF!","v":{"$error":"#REF!"}},{"$f":"#REF!","v":{"$error":"#REF!"}},"БД_Отчеты_СРФ_4_кв_2013.xlsm","4_кв_2013.",{"$f":"#REF!","v":{"$error":"#REF!"}},{"$f":"#REF!","v":{"$error":"#REF!"}},{"$f":"#REF!","v":{"$error":"#REF!"}},{"$f":"#REF!","v":{"$error":"#REF!"}},{"$f":"#REF!","v":{"$error":"#REF!"}},{"$f":"#REF!","v":{"$error":"#REF!"}},{"$f":"#REF!","v":{"$error":"#REF!"}},{"$f":"#REF!","v":{"$error":"#REF!"}},{"$f":"#REF!","v":{"$error":"#REF!"}},{"$f":"#REF!","v":{"$error":"#REF!"}},{"$f":"#REF!","v":{"$error":"#REF!"}},{"$f":"#REF!","v":{"$error":"#REF!"}},{"$f":"#REF!","v":{"$error":"#REF!"}},{"$f":"#REF!","v":{"$error":"#REF!"}},{"$f":"#REF!","v":{"$error":"#REF!"}},{"$f":"#REF!","v":{"$error":"#REF!"}},{"$f":"#REF!","v":{"$error":"#REF!"}},{"$f":"#REF!","v":{"$error":"#REF!"}},{"$f":"#REF!","v":{"$error":"#REF!"}},{"$f":"#REF!","v":{"$error":"#REF!"}},{"$f":"#REF!","v":{"$error":"#REF!"}},{"$f":"#REF!","v":{"$error":"#REF!"}},{"$f":"#REF!","v":{"$error":"#REF!"}},{"$f":"#REF!","v":{"$error":"#REF!"}},{"$f":"#REF!","v":{"$error":"#REF!"}},{"$error":"#REF!"},{"$error":"#REF!"},{"$error":"#REF!"},{"$error":"#REF!"},{"$error":"#REF!"},{"$error":"#REF!"}]
[{"$f":"#REF!","v":{"$error":"#REF!"}},{"$f":"#REF!","v":{"$error":"#REF!"}},{"$f":"#REF!","v":{"$error":"#REF!"}},"БД_Отчеты_СРФ_4_кв_2013.xlsm","4_кв_2013.",{"$f":"#REF!","v":{"$error":"#REF!"}},{"$f":"#REF!","v":{"$error":"#REF!"}},{"$f":"#REF!","v":{"$error":"#REF!"}},{"$f":"#REF!","v":{"$error":"#REF!"}},{"$f":"#REF!","v":{"$error":"#REF!"}},{"$f":"#REF!","v":{"$error":"#REF!"}},{"$f":"#REF!","v":{"$error":"#REF!"}},{"$f":"#REF!","v":{"$error":"#REF!"}},{"$f":"#REF!","v":{"$error":"#REF!"}},{"$f":"#REF!","v":{"$error":"#REF!"}},{"$f":"#REF!","v":{"$error":"#REF!"}},{"$f":"#REF!","v":{"$error":"#REF!"}},{"$f":"#REF!","v":{"$error":"#REF!"}},{"$f":"#REF!","v":{"$error":"#REF!"}},{"$f":"#REF!","v":{"$error":"#REF!"}},{"$f":"#REF!","v":{"$error":"#REF!"}},{"$f":"#REF!","v":{"$error":"#REF!"}},{"$f":"#REF!","v":{"$error":"#REF!"}},{"$f":"#REF!","v":{"$error":"#REF!"}},{"$f":"#REF!","v":{"$error":"#REF!"}},{"$f":"#REF!","v":{"$error":"#REF!"}},{"$f":"#REF!","v":{"$error":"#REF!"}},{"$f":"#REF!","v":{"$error":"#REF!"}},{"$f":"#REF!","v":{"$error":"#REF!"}},{"$f":"#REF!","v":{"$error":"#REF!"}},{"$error":"#REF!"},{"$error":"#REF!"},{"$error":"#REF!"},{"$error":"#REF!"},{"$error":"#REF!"},{"$error":"#REF!"}]
[{"$f":"#REF!","v":{"$error":"#REF!"}},{"$f":"#REF!","v":{"$error":"#REF!"}},{"$f":"#REF!","v":{"$error":"#REF!"}},"БД_Отчеты_СРФ_4_кв_2013.xlsm","4_кв_2013.",{"$f":"#REF!","v":{"$error":"#REF!"}},{"$f":"#REF!","v":{"$error":"#REF!"}},{"$f":"#REF!","v":{"$error":"#REF!"}},{"$f":"#REF!","v":{"$error":"#REF!"}},{"$f":"#REF!","v":{"$error":"#REF!"}},{"$f":"#REF!","v":{"$error":"#REF!"}},{"$f":"#REF!","v":{"$error":"#REF!"}},{"$f":"#REF!","v":{"$error":"#REF!"}},{"$f":"#REF!","v":{"$error":"#REF!"}},{"$f":"#REF!","v":{"$error":"#REF!"}},{"$f":"#REF!","v":{"$error":"#REF!"}},{"$f":"#REF!","v":{"$error":"#REF!"}},{"$f":"#REF!","v":{"$error":"#REF!"}},{"$f":"#REF!","v":{"$error":"#REF!"}},{"$f":"#REF!","v":{"$error":"#REF!"}},{"$f":"#REF!","v":{"$error":"#REF!"}},{"$f":"#REF!","v":{"$error":"#REF!"}},{"$f":"#REF!","v":{"$error":"#REF!"}},{"$f":"#REF!","v":{"$error":"#REF!"}},{"$f":"#REF!","v":{"$error":"#REF!"}},{"$f":"#REF!","v":{"$error":"#REF!"}},{"$f":"#REF!","v":{"$error":"#REF!"}},{"$f":"#REF!","v":{"$error":"#REF!"}},{"$f":"#REF!","v":{"$error":"#REF!"}},{"$f":"#REF!","v":{"$error":"#REF!"}},{"$error":"#REF!"},{"$error":"#REF!"},{"$error":"#REF!"},{"$error":"#REF!"},{"$error":"#REF!"},{"$error":"#REF!"}]
[{"$f":"#REF!","v":{"$error":"#REF!"}},{"$f":"#REF!","v":{"$error":"#REF!"}},{"$f":"#REF!","v":{"$error":"#REF!"}},"БД_Отчеты_СРФ_4_кв_2013.xlsm","4_кв_2013.",{"$f":"#REF!","v":{"$error":"#REF!"}},{"$f":"#REF!","v":{"$error":"#REF!"}},{"$f":"#REF!","v":{"$error":"#REF!"}},{"$f":"#REF!","v":{"$error":"#REF!"}},{"$f":"#REF!","v":{"$error":"#REF!"}},{"$f":"#REF!","v":{"$error":"#REF!"}},{"$f":"#REF!","v":{"$error":"#REF!"}},{"$f":"#REF!","v":{"$error":"#REF!"}},{"$f":"#REF!","v":{"$error":"#REF!"}},{"$f":"#REF!","v":{"$error":"#REF!"}},{"$f":"#REF!","v":{"$error":"#REF!"}},{"$f":"#REF!","v":{"$error":"#REF!"}},{"$f":"#REF!","v":{"$error":"#REF!"}},{"$f":"#REF!","v":{"$error":"#REF!"}},{"$f":"#REF!","v":{"$error":"#REF!"}},{"$f":"#REF!","v":{"$error":"#REF!"}},{"$f":"#REF!","v":{"$error":"#REF!"}},{"$f":"#REF!","v":{"$error":"#REF!"}},{"$f":"#REF!","v":{"$error":"#REF!"}},{"$f":"#REF!","v":{"$error":"#REF!"}},{"$f":"#REF!","v":{"$error":"#REF!"}},{"$f":"#REF!","v":{"$error":"#REF!"}},{"$f":"#REF!","v":{"$error":"#REF!"}},{"$f":"#REF!","v":{"$error":"#REF!"}},{"$f":"#REF!","v":{"$error":"#REF!"}},{"$error":"#REF!"},{"$error":"#REF!"},{"$error":"#REF!"},{"$error":"#REF!"},{"$error":"#REF!"},{"$error":"#REF!"}]
[{"$f":"#REF!","v":{"$error":"#REF!"}},{"$f":"#REF!","v":{"$error":"#REF!"}},{"$f":"#REF!","v":{"$error":"#REF!"}},"БД_Отчеты_СРФ_4_кв_2013.xlsm","4_кв_2013.",{"$f":"#REF!","v":{"$error":"#REF!"}},{"$f":"#REF!","v":{"$error":"#REF!"}},{"$f":"#REF!","v":{"$error":"#REF!"}},{"$f":"#REF!","v":{"$error":"#REF!"}},{"$f":"#REF!","v":{"$error":"#REF!"}},{"$f":"#REF!","v":{"$error":"#REF!"}},{"$f":"#REF!","v":{"$error":"#REF!"}},{"$f":"#REF!","v":{"$error":"#REF!"}},{"$f":"#REF!","v":{"$error":"#REF!"}},{"$f":"#REF!","v":{"$error":"#REF!"}},{"$f":"#REF!","v":{"$error":"#REF!"}},{"$f":"#REF!","v":{"$error":"#REF!"}},{"$f":"#REF!","v":{"$error":"#REF!"}},{"$f":"#REF!","v":{"$error":"#REF!"}},{"$f":"#REF!","v":{"$error":"#REF!"}},{"$f":"#REF!","v":{"$error":"#REF!"}},{"$f":"#REF!","v":{"$error":"#REF!"}},{"$f":"#REF!","v":{"$error":"#REF!"}},{"$f":"#REF!","v":{"$error":"#REF!"}},{"$f":"#REF!","v":{"$error":"#REF!"}},{"$f":"#REF!","v":{"$error":"#REF!"}},{"$f":"#REF!","v":{"$error":"#REF!"}},{"$f":"#REF!","v":{"$error":"#REF!"}},{"$f":"#REF!","v":{"$error":"#REF!"}},{"$f":"#REF!","v":{"$error":"#REF!"}},{"$error":"#REF!"},{"$error":"#REF!"},{"$error":"#REF!"},{"$error":"#REF!"},{"$error":"#REF!"},{"$error":"#REF!"}]
[{"$f":"#REF!","v":{"$error":"#REF!"}},{"$f":"#REF!","v":{"$error":"#REF!"}},{"$f":"#REF!","v":{"$error":"#REF!"}},"БД_Отчеты_СРФ_4_кв_2013.xlsm","4_кв_2013.",{"$f":"#REF!","v":{"$error":"#REF!"}},{"$f":"#REF!","v":{"$error":"#REF!"}},{"$f":"#REF!","v":{"$error":"#REF!"}},{"$f":"#REF!","v":{"$error":"#REF!"}},{"$f":"#REF!","v":{"$error":"#REF!"}},{"$f":"#REF!","v":{"$error":"#REF!"}},{"$f":"#REF!","v":{"$error":"#REF!"}},{"$f":"#REF!","v":{"$error":"#REF!"}},{"$f":"#REF!","v":{"$error":"#REF!"}},{"$f":"#REF!","v":{"$error":"#REF!"}},{"$f":"#REF!","v":{"$error":"#REF!"}},{"$f":"#REF!","v":{"$error":"#REF!"}},{"$f":"#REF!","v":{"$error":"#REF!"}},{"$f":"#REF!","v":{"$error":"#REF!"}},{"$f":"#REF!","v":{"$error":"#REF!"}},{"$f":"#REF!","v":{"$error":"#REF!"}},{"$f":"#REF!","v":{"$error":"#REF!"}},{"$f":"#REF!","v":{"$error":"#REF!"}},{"$f":"#REF!","v":{"$error":"#REF!"}},{"$f":"#REF!","v":{"$error":"#REF!"}},{"$f":"#REF!","v":{"$error":"#REF!"}},{"$f":"#REF!","v":{"$error":"#REF!"}},{"$f":"#REF!","v":{"$error":"#REF!"}},{"$f":"#REF!","v":{"$error":"#REF!"}},{"$f":"#REF!","v":{"$error":"#REF!"}},{"$error":"#REF!"},{"$error":"#REF!"},{"$error":"#REF!"},{"$error":"#REF!"},{"$error":"#REF!"},{"$error":"#REF!"}]
[{"$f":"#REF!","v":{"$error":"#REF!"}},{"$f":"#REF!","v":{"$error":"#REF!"}},{"$f":"#REF!","v":{"$error":"#REF!"}},"БД_Отчеты_СРФ_4_кв_2013.xlsm","4_кв_2013.",{"$f":"#REF!","v":{"$error":"#REF!"}},{"$f":"#REF!","v":{"$error":"#REF!"}},{"$f":"#REF!","v":{"$error":"#REF!"}},{"$f":"#REF!","v":{"$error":"#REF!"}},{"$f":"#REF!","v":{"$error":"#REF!"}},{"$f":"#REF!","v":{"$error":"#REF!"}},{"$f":"#REF!","v":{"$error":"#REF!"}},{"$f":"#REF!","v":{"$error":"#REF!"}},{"$f":"#REF!","v":{"$error":"#REF!"}},{"$f":"#REF!","v":{"$error":"#REF!"}},{"$f":"#REF!","v":{"$error":"#REF!"}},{"$f":"#REF!","v":{"$error":"#REF!"}},{"$f":"#REF!","v":{"$error":"#REF!"}},{"$f":"#REF!","v":{"$error":"#REF!"}},{"$f":"#REF!","v":{"$error":"#REF!"}},{"$f":"#REF!","v":{"$error":"#REF!"}},{"$f":"#REF!","v":{"$error":"#REF!"}},{"$f":"#REF!","v":{"$error":"#REF!"}},{"$f":"#REF!","v":{"$error":"#REF!"}},{"$f":"#REF!","v":{"$error":"#REF!"}},{"$f":"#REF!","v":{"$error":"#REF!"}},{"$f":"#REF!","v":{"$error":"#REF!"}},{"$f":"#REF!","v":{"$error":"#REF!"}},{"$f":"#REF!","v":{"$error":"#REF!"}},{"$f":"#REF!","v":{"$error":"#REF!"}},{"$error":"#REF!"},{"$error":"#REF!"},{"$error":"#REF!"},{"$error":"#REF!"},{"$error":"#REF!"},{"$error":"#REF!"}]
[{"$f":"#REF!","v":{"$error":"#REF!"}},{"$f":"#REF!","v":{"$error":"#REF!"}},{"$f":"#REF!","v":{"$error":"#REF!"}},"БД_Отчеты_СРФ_4_кв_2013.xlsm","4_кв_2013.",{"$f":"#REF!","v":{"$error":"#REF!"}},{"$f":"#REF!","v":{"$error":"#REF!"}},{"$f":"#REF!","v":{"$error":"#REF!"}},{"$f":"#REF!","v":{"$error":"#REF!"}},{"$f":"#REF!","v":{"$error":"#REF!"}},{"$f":"#REF!","v":{"$error":"#REF!"}},{"$f":"#REF!","v":{"$error":"#REF!"}},{"$f":"#REF!","v":{"$error":"#REF!"}},{"$f":"#REF!","v":{"$error":"#REF!"}},{"$f":"#REF!","v":{"$error":"#REF!"}},{"$f":"#REF!","v":{"$error":"#REF!"}},{"$f":"#REF!","v":{"$error":"#REF!"}},{"$f":"#REF!","v":{"$error":"#REF!"}},{"$f":"#REF!","v":{"$error":"#REF!"}},{"$f":"#REF!","v":{"$error":"#REF!"}},{"$f":"#REF!","v":{"$error":"#REF!"}},{"$f":"#REF!","v":{"$error":"#REF!"}},{"$f":"#REF!","v":{"$error":"#REF!"}},{"$f":"#REF!","v":{"$error":"#REF!"}},{"$f":"#REF!","v":{"$error":"#REF!"}},{"$f":"#REF!","v":{"$error":"#REF!"}},{"$f":"#REF!","v":{"$error":"#REF!"}},{"$f":"#REF!","v":{"$error":"#REF!"}},{"$f":"#REF!","v":{"$error":"#REF!"}},{"$f":"#REF!","v":{"$error":"#REF!"}},{"$error":"#REF!"},{"$error":"#REF!"},{"$error":"#REF!"},{"$error":"#REF!"},{"$error":"#REF!"},{"$error":"#REF!"}]
[{"$f":"#REF!","v":{"$error":"#REF!"}},{"$f":"#REF!","v":{"$error":"#REF!"}},{"$f":"#REF!","v":{"$error":"#REF!"}},"БД_Отчеты_СРФ_4_кв_2013.xlsm","4_кв_2013.",{"$f":"#REF!","v":{"$error":"#REF!"}},{"$f":"#REF!","v":{"$error":"#REF!"}},{"$f":"#REF!","v":{"$error":"#REF!"}},{"$f":"#REF!","v":{"$error":"#REF!"}},{"$f":"#REF!","v":{"$error":"#REF!"}},{"$f":"#REF!","v":{"$error":"#REF!"}},{"$f":"#REF!","v":{"$error":"#REF!"}},{"$f":"#REF!","v":{"$error":"#REF!"}},{"$f":"#REF!","v":{"$error":"#REF!"}},{"$f":"#REF!","v":{"$error":"#REF!"}},{"$f":"#REF!","v":{"$error":"#REF!"}},{"$f":"#REF!","v":{"$error":"#REF!"}},{"$f":"#REF!","v":{"$error":"#REF!"}},{"$f":"#REF!","v":{"$error":"#REF!"}},{"$f":"#REF!","v":{"$error":"#REF!"}},{"$f":"#REF!","v":{"$error":"#REF!"}},{"$f":"#REF!","v":{"$error":"#REF!"}},{"$f":"#REF!","v":{"$error":"#REF!"}},{"$f":"#REF!","v":{"$error":"#REF!"}},{"$f":"#REF!","v":{"$error":"#REF!"}},{"$f":"#REF!","v":{"$error":"#REF!"}},{"$f":"#REF!","v":{"$error":"#REF!"}},{"$f":"#REF!","v":{"$error":"#REF!"}},{"$f":"#REF!","v":{"$error":"#REF!"}},{"$f":"#REF!","v":{"$error":"#REF!"}},{"$error":"#REF!"},{"$error":"#REF!"},{"$error":"#REF!"},{"$error":"#REF!"},{"$error":"#REF!"},{"$error":"#REF!"}]
[{"$f":"#REF!","v":{"$error":"#REF!"}},{"$f":"#REF!","v":{"$error":"#REF!"}},{"$f":"#REF!","v":{"$error":"#REF!"}},"БД_Отчеты_СРФ_4_кв_2013.xlsm","4_кв_2013.",{"$f":"#REF!","v":{"$error":"#REF!"}},{"$f":"#REF!","v":{"$error":"#REF!"}},{"$f":"#REF!","v":{"$error":"#REF!"}},{"$f":"#REF!","v":{"$error":"#REF!"}},{"$f":"#REF!","v":{"$error":"#REF!"}},{"$f":"#REF!","v":{"$error":"#REF!"}},{"$f":"#REF!","v":{"$error":"#REF!"}},{"$f":"#REF!","v":{"$error":"#REF!"}},{"$f":"#REF!","v":{"$error":"#REF!"}},{"$f":"#REF!","v":{"$error":"#REF!"}},{"$f":"#REF!","v":{"$error":"#REF!"}},{"$f":"#REF!","v":{"$error":"#REF!"}},{"$f":"#REF!","v":{"$error":"#REF!"}},{"$f":"#REF!","v":{"$error":"#REF!"}},{"$f":"#REF!","v":{"$error":"#REF!"}},{"$f":"#REF!","v":{"$error":"#REF!"}},{"$f":"#REF!","v":{"$error":"#REF!"}},{"$f":"#REF!","v":{"$error":"#REF!"}},{"$f":"#REF!","v":{"$error":"#REF!"}},{"$f":"#REF!","v":{"$error":"#REF!"}},{"$f":"#REF!","v":{"$error":"#REF!"}},{"$f":"#REF!","v":{"$error":"#REF!"}},{"$f":"#REF!","v":{"$error":"#REF!"}},{"$f":"#REF!","v":{"$error":"#REF!"}},{"$f":"#REF!","v":{"$error":"#REF!"}},{"$error":"#REF!"},{"$error":"#REF!"},{"$error":"#REF!"},{"$error":"#REF!"},{"$error":"#REF!"},{"$error":"#REF!"}]
[{"$f":"#REF!","v":{"$error":"#REF!"}},{"$f":"#REF!","v":{"$error":"#REF!"}},{"$f":"#REF!","v":{"$error":"#REF!"}},"БД_Отчеты_СРФ_4_кв_2013.xlsm","4_кв_2013.",{"$f":"#REF!","v":{"$error":"#REF!"}},{"$f":"#REF!","v":{"$error":"#REF!"}},{"$f":"#REF!","v":{"$error":"#REF!"}},{"$f":"#REF!","v":{"$error":"#REF!"}},{"$f":"#REF!","v":{"$error":"#REF!"}},{"$f":"#REF!","v":{"$error":"#REF!"}},{"$f":"#REF!","v":{"$error":"#REF!"}},{"$f":"#REF!","v":{"$error":"#REF!"}},{"$f":"#REF!","v":{"$error":"#REF!"}},{"$f":"#REF!","v":{"$error":"#REF!"}},{"$f":"#REF!","v":{"$error":"#REF!"}},{"$f":"#REF!","v":{"$error":"#REF!"}},{"$f":"#REF!","v":{"$error":"#REF!"}},{"$f":"#REF!","v":{"$error":"#REF!"}},{"$f":"#REF!","v":{"$error":"#REF!"}},{"$f":"#REF!","v":{"$error":"#REF!"}},{"$f":"#REF!","v":{"$error":"#REF!"}},{"$f":"#REF!","v":{"$error":"#REF!"}},{"$f":"#REF!","v":{"$error":"#REF!"}},{"$f":"#REF!","v":{"$error":"#REF!"}},{"$f":"#REF!","v":{"$error":"#REF!"}},{"$f":"#REF!","v":{"$error":"#REF!"}},{"$f":"#REF!","v":{"$error":"#REF!"}},{"$f":"#REF!","v":{"$error":"#REF!"}},{"$f":"#REF!","v":{"$error":"#REF!"}},{"$error":"#REF!"},{"$error":"#REF!"},{"$error":"#REF!"},{"$error":"#REF!"},{"$error":"#REF!"},{"$error":"#REF!"}]
[]
[null,null,null,null,null,null,null,null,null,{"$f":"SUM(J6:J55)-#REF!","v":{"$error":"#REF!"}},{"$f":"SUM(K6:K55)-#REF!","v":{"$error":"#REF!"}},{"$f":"SUM(L6:L55)-#REF!","v":{"$error":"#REF!"}},{"$f":"SUM(M6:M55)-#REF!","v":{"$error":"#REF!"}},{"$f":"SUM(N6:N55)-#REF!","v":{"$error":"#REF!"}},{"$f":"SUM(O6:O55)-#REF!","v":{"$error":"#REF!"}},{"$f":"SUM(P6:P55)-#REF!","v":{"$error":"#REF!"}},{"$f":"SUM(Q6:Q55)-#REF!","v":{"$error":"#REF!"}},{"$f":"SUM(R6:R55)-#REF!","v":{"$error":"#REF!"}},{"$f":"SUM(S6:S55)-#REF!","v":{"$error":"#REF!"}},{"$f":"SUM(T6:T55)-#REF!","v":{"$error":"#REF!"}},{"$f":"SUM(U6:U55)-#REF!","v":{"$error":"#REF!"}},{"$f":"SUM(V6:V55)-#REF!","v":{"$error":"#REF!"}},{"$f":"SUM(W6:W55)-#REF!","v":{"$error":"#REF!"}},{"$f":"SUM(X6:X55)-#REF!","v":{"$error":"#REF!"}},{"$f":"SUM(Y6:Y55)-#REF!","v":{"$error":"#REF!"}},{"$f":"SUM(Z6:Z55)-#REF!","v":{"$error":"#REF!"}},{"$f":"SUM(AA6:AA55)-#REF!","v":{"$error":"#REF!"}},{"$f":"SUM(AB6:AB55)-#REF!","v":{"$error":"#REF!"}},{"$f":"SUM(AC6:AC55)-#REF!","v":{"$error":"#REF!"}}]

{"sheet":"Наименования субъектов РФ","index":5,"n_rows":84,"n_cols":2,"rows_kept":84,"cut":false,"hidden":false,"merged":[]}
["Порядковый номер субъекта РФ в соответствии с Конституцией РФ","Полное наименование субъекта РФ"]
["01","Республика Адыгея (Адыгея) "]
["02","Республика Алтай "]
["03","Республика Башкортостан "]
["04","Республика Бурятия "]
["05","Республика Дагестан "]
["06","Республика Ингушетия"]
["07","Кабардино-Балкарская Республика "]
["08","Республика Калмыкия "]
["09","Карачаево-Черкесская Республика "]
["10","Республика Карелия "]
["11","Республика Коми "]
["12","Республика Марий Эл "]
["13","Республика Мордовия "]
["14","Республика Саха (Якутия) "]
["15","Республика Северная Осетия - Алания "]
["16","Республика Татарстан (Татарстан) "]
["17","Республика Тыва "]
["18","Удмуртская Республика "]
["19","Республика Хакасия "]
["20","Чеченская Республика "]
["21","Чувашская Республика - Чувашия"]
["22","Алтайский край "]
["23","Забайкальский край "]
["24","Камчатский край "]
["25","Краснодарский край "]
["26","Красноярский край "]
["27","Пермский край "]
["28","Приморский край "]
["29","Ставропольский край "]
["30","Хабаровский край"]
["31","Амурская область "]
["32","Архангельская область "]
["33","Астраханская область "]
["34","Белгородская область "]
["35","Брянская область "]
["36","Владимирская область "]
["37","Волгоградская область "]
["38","Вологодская область "]
["39","Воронежская область "]
["40","Ивановская область "]
["41","Иркутская область "]
["42","Калининградская область "]
["43","Калужская область "]
["44","Кемеровская область "]
["45","Кировская область "]
["46","Костромская область "]
["47","Курганская область "]
["48","Курская область "]
["49","Ленинградская область "]
["50","Липецкая область "]
["51","Магаданская область "]
["52","Московская область "]
["53","Мурманская область "]
["54","Нижегородская область "]
["55","Новгородская область "]
["56","Новосибирская область "]
["57","Омская область "]
["58","Оренбургская область "]
["59","Орловская область "]
["60","Пензенская область "]
["61","Псковская область "]
["62","Ростовская область "]
["63","Рязанская область "]
["64","Самарская область "]
["65","Саратовская область "]
["66","Сахалинская область "]
["67","Свердловская область "]
["68","Смоленская область "]
["69","Тамбовская область "]
["70","Тверская область "]
["71","Томская область "]
["72","Тульская область "]
["73","Тюменская область "]
["74","Ульяновская область "]
["75","Челябинская область "]
["76","Ярославская область"]
["77","Москва "]
["78","Санкт-Петербург"]
["79","Еврейская автономная область"]
["80","Ненецкий автономный округ "]
["81","Ханты-Мансийский автономный округ - Югра "]
["82","Чукотский автономный округ "]
["83","Ямало-Ненецкий автономный округ"]